Workbook

Sheet Table S1
A1: Table S1. Primer Sequences
A2: Target | B2: Oligo Sequence (5'-3') | C2: Annealing Temperature (°C)
A3: Group A cox1F (primer set 1; P1) | B3: TATGATGWGCTCATACAATAAATCC | C3: 53
A4: Group A cox1R | B4: TATTTACWGTWGGAATAGATGTWGAY
A5: Group A 16sF (primer set 2; P2) | B5: CATATAGATAAAATAGWTTGCGACC | C5: 58
A6: Group A 16sR | B6: AACTATCCAAAATWATWACGCTGTTATCC
A7: Group B cox1F (primer set 1; P1) | B7: GARWATATTCATCGCGGTAA | C7: 58
A8: Group B cox1R | B8: TCTACWAATCATAAAGACATTGGAAC
A9: Group B 16sF (primer set 2; P2) | B9: GAGAATCAGGTTGGWTTCTATC | C9: 58
A10: Group B 16sR | B10: ATCGGTCTAAACTCAGATCATGTA
A11: Alectorobius amblus ssP1R | B11: TATTTACAGTGGGTATGGATGTTGAT | C11: 58*
A12: Alectorobius atacamensis ssP1F | B12: TATGATGAGCTCATACAATAAAGCC | C12: 58
A13: Alectorobius atacamensis ssP1R | B13: TATTCACAGTAGGAATAGATGTAGAT
A14: Alectorobius fonsecai ssP1F | B14: TATGATGGGCTCAAACGATAAAACC | C14: 58†
A15: Alectorobius mimon ssP1F | B15: TATGRTGTGCTCATACAATGAAGC | C15: 58
A16: Alectorobius mimon ssP1R | B16: TATTCACAGTGGGCATAGATGTAGAT
A17: Alectorobius peropteryx ssP1F | B17: TATGGTGTGCTCATACGATGAAGC | C17: 58
A18: Alectorobius peropteryx ssP1R | B18: TATTTACAGTAGGAATAGACGTTGATAC
A19: Amblyomma maculatum ssP1F | B19: GAATAAAATCATCGCGGTAA | C19: 58
A20: Amblyomma maculatum ssP1R | B20: TCTACCAATCATAAAGACATTGG
A21: Argas africolumbae ssP1F | B21: TATGGTGAGCYCAYACGATGA | C21: 58
A22: Argas africolumbae ssP1R | B22: TATTTACAGTAGGTATAGATGTAGAC
A23: Chiropterargas boueti ssP1F | B23: TATGGTGTGCTCATACAATAAATCC | C23: 58
A24: Chiropterargas boueti ssP1R | B24: TATTCACAGTAGGAATAGATGTAGAT
A25: Chiropterargas boueti ssP2F | B25: CATATTGATATGATAGTTTGCGACC | C25: 58
A26: Chiropterargas boueti ssP2R | B26: AACTATCCAAAATAATTACGCTGTTAACC
A27: Ixodes angustus ssP1F | B27: TGTGGTGTGCTCAGACAATAA | C27: 58
A28: Ixodes angustus ssP1R | B28: TATTCACTGTAGGTATAGATATCGAT
A29: Ixodes pacificus ssP1R | B29: TGTTCACTGTTGGTATAGACATCG | C29: 58*
A30: Nuttalliella namaqua ssP1F | B30: TATGATGAGCTCAAACAATAAATCC | C30: 53
A31: Nuttalliella namaqua ssP1R | B31: TATTTACAATTGGRATRGATATTGAT
A32: Ornithodoros erraticus ssP2F | B32: CTAATAGATAAAGTGGTTTGCGACC | C32: 58
A33: Ornithodoros erraticus ssP2R | B33: ATCTATCCAAARTWATTACGCTGTTATCC
A34: Ornithodoros moubata ssP1F | B34: TATGGTGTGCTCATACAATGAAACC | C34: 58†
A35: Ornithodoros phacochoerus ssP1R | B35: TATTTACTGTTGGAATAGACGTAGAT | C35: 58*
A36: Ornithodoros waterbergensis ssP1F | B36: TATGATGCGCTCACACGATAAAACC | C36: 58
A37: Ornithodoros waterbergensis ssP1R | B37: TATTCACTGTTGGAATAGATGTAGAC
A38: Ornithodoros zumpti ssP1R | B38: TATTTACAGTAGGTATGGACGTCGAC | C38: 58*
A39: Proknekalia peringueyi ssP2F | B39: CTTATAGATAAAATTGATTGCGACC | C39: 58
A40: Proknekalia peringueyi ssP2R | B40: AACTATCCAAAATTATTACGCTGTTATCC
A41: Secretargas transgariepinus ssP2R | B41: AACTATCCGAAATTATAACGCTGTTATC | C41: 58‡
A42: Amblyomma tholloni 16s verification primer forward | B42: CTACAGCAATTTAATAATATTCATTGAGC | C42: 58.5
A43: Amblyomma tholloni 16s verification primer reverse | B43: GAAAGTTTTAATTGAAATTAATAACTAAGG
A44: Amblyomma tholloni trnF_nd5 verification primer forward | B44: GAAATTTAAAGGGTTATCTTGATAGG | C44: 58
A45: Amblyomma tholloni trnF_nd5 verification primer reverse | B45: GGTGTATGATAATTTCAATTTTATCTC
A46: Ogadenus brumpti nd2 verification primer forward | B46: CTTACTTCTTCCATTATTATAGCC | C46: 54.5
A47: Ogadenus brumpti nd2 verification primer reverse | B47: CTAATGATAAAAGAATAATAATAAGTG
A48: Ogadenus brumpti cox1 verification primer forward | B48: CTTCAAAGTATAAATTACATATTAGTAAGTC | C48: 58
A49: Ogadenus brumpti cox1 verification primer reverse | B49: CAGGTAAAATTAAAATATATACTTCAGG
A50: Rhipicephalus zambeziensis 16s verification primer forward | B50: ATTCGTAGGGTCTTCTTGTC | C50: 58
A51: Rhipicephalus zambeziensis 16s verification primer reverse | B51: GTGAAATTCTATTCAAAAATTGTG
A52: *= used with the Group A cox1F primer
A53: †= used with the Group A cox1R primer
A54: ‡= used with the Group A 16sF primer

Sheet Table S2
A1: Table S2. Mitogenome PCR Results
A2: Group | B2: Sample | C2: Sample Identifier | D2: P1 Amplification | E2: P2 Amplification
A3: A | B3: Alectorobius amblus* | C3: 44 | D3: - | E3: +
A4: A | B4: Alectorobius atacamensis* | C4: 23 | D4: + | E4: +
A5: A | B5: Alectorobius capensis | C5: 45 | D5: + | E5: +
A6: A | B6: Alectorobius capensis | C6: 42 | D6: - | E6: -
A7: A | B7: Alectorobius capensis | C7: 1 | D7: + | E7: +
A8: A | B8: Alectorobius capensis Bird Island | C8: 30 | D8: - | E8: -
A9: A | B9: Alectorobius capensis St. Croix | C9: 29 | D9: + | E9: +
A10: A | B10: Alectorobius cavernicolous* | C10: 4 | D10: - | E10: -
A11: A | B11: Alectorobius cavernicolous* | C11: 5 | D11: - | E11: -
A12: A | B12: Alectorobius cavernicolous* | C12: 1 | D12: + | E12: -
A13: A | B13: Alectorobius cavernicolous* | C13: 2 | D13: - | E13: -
A14: A | B14: Alectorobius cerradoensis* | C14: 2 | D14: + | E14: +
A15: A | B15: Alectorobius cerradoensis* | C15: 1 | D15: + | E15: +
A16: A | B16: Alectorobius fonsecai* | C16: 7 | D16: - | E16: +
A17: A | B17: Alectorobius fonsecai* | C17: 6 | D17: - | E17: +
A18: A | B18: Alectorobius guaporensis* | C18: 2 | D18: + | E18: +
A19: A | B19: Alectorobius guaporensis* | C19: 1 | D19: + | E19: +
A20: A | B20: Alectorobius hasei* | C20: 37 | D20: - | E20: -
A21: A | B21: Alectorobius hasei* | C21: 12 | D21: - | E21: -
A22: A | B22: Alectorobius hasei* | C22: 2 | D22: - | E22: -
A23: A | B23: Alectorobius lahillei* | C23: 21 | D23: - | E23: -
A24: A | B24: Alectorobius microlophi* | C24: 10 | D24: + | E24: +
A25: A | B25: Alectorobius microlophi* | C25: 13 | D25: - | E25: -
A26: A | B26: Alectorobius microlophi* | C26: 17 | D26: + | E26: +
A27: A | B27: Alectorobius mimon* | C27: 2 | D27: - | E27: +
A28: A | B28: Alectorobius mimon* | C28: 3 | D28: - | E28: +
A29: A | B29: Alectorobius mimon* | C29: 1 | D29: - | E29: +
A30: A | B30: Alectorobius octodontus* | C30: 19 | D30: - | E30: -
A31: A | B31: Alectorobius octodontus* | C31: 22 | D31: - | E31: -
A32: A | B32: Alectorobius octodontus* | C32: 27 | D32: - | E32: -
A33: A | B33: Alectorobius peropteryx* | C33: 2 | D33: - | E33: +
A34: A | B34: Alectorobius peropteryx* | C34: 1 | D34: - | E34: +
A35: A | B35: Alectorobius peruvianus* | C35: 14 | D35: - | E35: -
A36: A | B36: Alectorobius peruvianus* | C36: solo | D36: + | E36: +
A37: A | B37: Alectorobius puertoricensis* | C37: 1 | D37: + | E37: +
A38: A | B38: Alectorobius puertoricensis* | C38: 3 | D38: + | E38: +
A39: A | B39: Alectorobius rietcorreai* | C39: 2 | D39: + | E39: +
A40: A | B40: Alectorobius rietcorreai* | C40: 25 | D40: + | E40: +
A41: A | B41: Alectorobius rioplatensis* | C41: 1 | D41: + | E41: +
A42: A | B42: Alectorobius rioplatensis* | C42: 2 | D42: + | E42: +
A43: A | B43: Alectorobius saraivai* | C43: 28 | D43: - | E43: -
A44: A | B44: Alectorobius saraivai* | C44: 29 | D44: - | E44: +
A45: A | B45: Alectorobius spheniscus* | C45: 18 | D45: - | E45: +
A46: A | B46: Alectorobius spheniscus* | C46: 24 | D46: - | E46: +
A47: A | B47: Alectorobius spheniscus* | C47: 36 | D47: - | E47: +
A48: A | B48: Alectorobius spheniscus* | C48: 38 | D48: - | E48: +
A49: A | B49: Alectorobius tabajara* | C49: 29B | D49: + | E49: +
A50: A | B50: Alectorobius tabajara* | C50: 30A | D50: + | E50: +
A51: A | B51: Alectorobius tabajara* | C51: 30B | D51: + | E51: +
A52: A | B52: Argas africolumbae JM2 | C52: 33 | D52: - | E52: +
A53: A | B53: Argas cucumerinus* | C53: 30 | D53: - | E53: -
A54: A | B54: Argas cucumerinus* | C54: 32 | D54: - | E54: -
A55: A | B55: Argas cucumerinus* | C55: 41 | D55: weak | E55: weak
A56: A | B56: Argas cucumerinus* | C56: 31 | D56: - | E56: -
A57: A | B57: Argas cucumerinus* | C57: 43 | D57: - | E57: -
A58: A | B58: Argas cucumerinus* | C58: 42 | D58: - | E58: -
A59: A | B59: Argas eboris (Museum)* | C59: 106 | D59: - | E59: -
A60: A | B60: Argas persicus | C60: 34 | D60: - | E60: -
A61: A | B61: Argas persicus | C61: 35 | D61: + | E61: +
A62: A | B62: Argas persicus | C62: 33 | D62: weak | E62: -
A63: A | B63: Argas persicus Kenya | C63: 104 | D63: - | E63: -
A64: A | B64: Argas ricei* | C64: female | D64: - | E64: weak
A65: A | B65: Argas ricei* | C65: male | D65: + | E65: +
A66: A | B66: Argas sp. San Antonio | C66: nymph | D66: weak | E66: +
A67: A | B67: Argas walkerae | C67: 37 | D67: - | E67: -
A68: A | B68: Argas walkerae 1 | C68: 83 | D68: - | E68: -
A69: A | B69: Argas walkerae 2#2 | C69: 113 | D69: - | E69: -
A70: A | B70: Chiropterargas boueti (Museum) | C70: 110 | D70: - | E70: -
A71: A | B71: Chiropterargas boueti AG2 | C71: 26 | D71: - | E71: -
A72: A | B72: Chiropterargas boueti BP1 | C72: 20 | D72: - | E72: +
A73: A | B73: Ixodes angustus WA16-173* | C73: WA16-173 | D73: - | E73: +
A74: A | B74: Ixodes angustus WA16-187* | C74: WA16-187 | D74: - | E74: weak
A75: A | B75: Ixodes pacificus* | C75: female | D75: - | E75: +
A76: A | B76: Ixodes pacificus* | C76: male | D76: - | E76: +
A77: A | B77: Ixodes ricinus | C77: 2 | D77: weak | E77: +
A78: A | B78: Ixodes ricinus | C78: 3 | D78: + | E78: +
A79: A | B79: Ixodes ricinus | C79: 1 | D79: - | E79: +
A80: A | B80: Ixodes rubicundus | C80: 7 | D80: weak | E80: +
A81: A | B81: Ixodes scapularis | C81: 2 | D81: + | E81: +
A82: A | B82: Ixodes scapularis | C82: 3 | D82: + | E82: +
A83: A | B83: Ixodes simplex Bakwena1 | C83: 53 | D83: - | E83: -
A84: A | B84: Ixodes simplex Bakwena2 | C84: 54 | D84: - | E84: -
A85: A | B85: Navis striatus P1 | C85: 36 | D85: - | E85: -
A86: A | B86: Navis striatus U2 | C86: 12 | D86: + | E86: -
A87: A | B87: Nuttalliella namaqua HVP | C87: 19 | D87: - | E87: +
A88: A | B88: Nuttalliella namaqua Krymekaar | C88: 34 | D88: - | E88: -
A89: A | B89: Ogadenus brumpti L1 | C89: 17 | D89: + | E89: +
A90: A | B90: Ogadenus brumpti L2 | C90: 18 | D90: + | E90: +
A91: A | B91: Ornithodoros compactus K2 | C91: 9 | D91: + | E91: +
A92: A | B92: Ornithodoros costalis | C92: 40 | D92: - | E92: -
A93: A | B93: Ornithodoros erraticus* | C93: 1 | D93: + | E93: -
A94: A | B94: Ornithodoros erraticus* | C94: 2 | D94: + | E94: -
A95: A | B95: Ornithodoros furcosus* | C95: 1 | D95: + | E95: -
A96: A | B96: Ornithodoros furcosus* | C96: 2 | D96: + | E96: +
A97: A | B97: Ornithodoros hermsi | C97: 3 | D97: + | E97: +
A98: A | B98: Ornithodoros kalaharensis UP | C98: 94 | D98: - | E98: +
A99: A | B99: Ornithodoros kalahariensis | C99: 35 | D99: - | E99: -
A100: A | B100: Ornithodoros Morocco* | C100: 89 | D100: - | E100: -
A101: A | B101: Ornithodoros moubata | C101: female1 | D101: + | E101: +
A102: A | B102: Ornithodoros moubata (Museum) | C102: 108 | D102: - | E102: -
A103: A | B103: Ornithodoros moubata PMO1 | C103: 70 | D103: - | E103: +
A104: A | B104: Ornithodoros noorsveldensis | C104: 111 | D104: + | E104: +
A105: A | B105: Ornithodoros pavimentosus | C105: 41 | D105: - | E105: weak
A106: A | B106: Ornithodoros phacochoerus Pafuri3 | C106: 78 | D106: weak | E106: +
A107: A | B107: Ornithodoros porcinus Kenya | C107: 39 | D107: - | E107: -
A108: A | B108: Ornithodoros rudis* | C108: 11 | D108: + | E108: +
A109: A | B109: Ornithodoros rudis* | C109: 2 | D109: + | E109: +
A110: A | B110: Ornithodoros savignyi (Museum) | C110: 109 | D110: - | E110: -
A111: A | B111: Ornithodoros savignyi Sudan 5 | C111: 127 | D111: - | E111: -
A112: A | B112: Ornithodoros savignyi Sudan1 | C112: 64 | D112: weak | E112: -
A113: A | B113: Ornithodoros sp.* | C113: 1 | D113: weak | E113: -
A114: A | B114: Ornithodoros tartakovskyi * | C114: 1 | D114: + | E114: +
A115: A | B115: Ornithodoros tartakovskyi* | C115: 2 | D115: + | E115: +
A116: A | B116: Ornithodoros turicata KAN | C116: 5 | D116: + | E116: +
A117: A | B117: Ornithodoros turicata NM | C117: 3 | D117: + | E117: +
A118: A | B118: Ornithodoros turicata Ocala | C118: 2 | D118: + | E118: +
A119: A | B119: Ornithodoros turicata Travis | C119: 5 | D119: + | E119: +
A120: A | B120: Ornithodoros verrucosus CHICH-C* | C120: 1 | D120: + | E120: +
A121: A | B121: Ornithodoros verrucosus CHICH-C* | C121: 2 | D121: + | E121: +
A122: A | B122: Ornithodoros waterbergensis ASH3 | C122: 121 | D122: - | E122: -
A123: A | B123: Ornithodoros waterbergensis PP2 | C123: 119 | D123: - | E123: -
A124: A | B124: Ornithodoros waterbergensis SD2 | C124: 22 | D124: - | E124: +
A125: A | B125: Ornithodoros zumpti CA1 | C125: 76 | D125: - | E125: -
A126: A | B126: Ornithodoros zumpti CA2 | C126: 75 | D126: - | E126: +
A127: A | B127: Ornithodoros zumpti CAN | C127: 24 | D127: - | E127: weak
A128: A | B128: Ornithodoros zumpti GS1 | C128: 72 | D128: - | E128: +
A129: A | B129: Ornithodoros zumpti GS2 | C129: 73 | D129: - | E129: +
A130: A | B130: Ornithodoros zumpti GSN | C130: 23 | D130: - | E130: -
A131: A | B131: Otobius lagophilus* | C131: 4 | D131: + | E131: +
A132: A | B132: Otobius lagophilus* | C132: 8 | D132: + | E132: +
A133: A | B133: Otobius lagophilus* | C133: N1 | D133: + | E133: +
A134: A | B134: Otobius lagophilus* | C134: N2 | D134: + | E134: -
A135: A | B135: Otobius megnini | C135: 31 | D135: weak | E135: +
A136: A | B136: Proknekalia peringueyi 1 | C136: 13 | D136: weak | E136: +
A137: A | B137: Reticulinasus faini 2 | C137: 82 | D137: + | E137: +
A138: A | B138: Secretargas transgariepinus | C138: 130 | D138: - | E138: -
A139: A | B139: Secretargas transgariepinus (Museum) | C139: 105 | D139: - | E139: -
A140: A | B140: Secretargas transgariepinus 1 | C140: 15 | D140: - | E140: -
A141: A | B141: Secretargas transgariepinus 2 | C141: 16 | D141: - | E141: -
A142: B | B142: Amblyomma americanum | C142: 2 | D142: weak | E142: +
A143: B | B143: Amblyomma americanum | C143: 1 | D143: + | E143: +
A144: B | B144: Amblyomma americanum | C144: 3 | D144: + | E144: +
A145: B | B145: Amblyomma hebraeum 1 | C145: 50 | D145: + | E145: +
A146: B | B146: Amblyomma maculatum | C146: 3 | D146: - | E146: +
A147: B | B147: Amblyomma maculatum | C147: 1 | D147: - | E147: +
A148: B | B148: Amblyomma maculatum | C148: 2 | D148: - | E148: -
A149: B | B149: Amblyomma mixtum* | C149: 1 | D149: + | E149: +
A150: B | B150: Amblyomma tholloni 1 | C150: 100 | D150: + | E150: +
A151: B | B151: Dermacentor albipictus* | C151: 1 | D151: + | E151: +
A152: B | B152: Dermacentor albipictus* | C152: 2 | D152: + | E152: +
A153: B | B153: Dermacentor variabilis | C153: 2 | D153: + | E153: +
A154: B | B154: Haemaphysalis longicornis | C154: 3 | D154: + | E154: +
A155: B | B155: Hyalomma marginatum | C155: 1 | D155: + | E155: +
A156: B | B156: Hyalomma truncatum 2 | C156: 49 | D156: - | E156: -
A157: B | B157: Rhipicephalus annulatus* | C157: 1 | D157: + | E157: +
A158: B | B158: Rhipicephalus appendiculatus 2 | C158: 32 | D158: + | E158: +
A159: B | B159: Rhipicephalus evertsi 2 | C159: 46 | D159: + | E159: +
A160: B | B160: Rhipicephalus evertsi Kwanare | C160: 125 | D160: weak | E160: +
A161: B | B161: Rhipicephalus maculatus 1 | C161: 44 | D161: + | E161: +
A162: B | B162: Rhipicephalus microplus | C162: 3 | D162: + | E162: +
A163: B | B163: Rhipicephalus sanguineus | C163: 1 | D163: + | E163: +
A164: B | B164: Rhipicephalus simus | C164: 52 | D164: + | E164: +
A165: B | B165: Rhipicephalus zambeziensis | C165: 59 | D165: + | E165: +
A166: *species does not currently have a mitogenome in GenBank

Sheet Table S3
A1: Table S3. Mitogenome Species-Specific PCR Results
A2: Group | B2: Sample | C2: Sample Identifier | D2: ssP1 Amplification | E2: ssP2 Amplification
A3: A | B3: Alectorobius amblus | C3: 44 | D3: - | E3: N/A
A4: A | B4: Alectorobius atacamensis | C4: 23 | D4: + | E4: N/A
A5: A | B5: Alectorobius fonsecai | C5: 6 | D5: - | E5: N/A
A6: A | B6: Alectorobius fonsecai | C6: 7 | D6: + | E6: N/A
A7: A | B7: Alectorobius mimon | C7: 2 | D7: weak | E7: N/A
A8: A | B8: Alectorobius mimon | C8: 3 | D8: + | E8: N/A
A9: A | B9: Alectorobius peropteryx | C9: 1 | D9: + | E9: N/A
A10: A | B10: Alectorobius peropteryx | C10: 2 | D10: + | E10: N/A
A11: A | B11: Argas africolumbae JM2 | C11: 33 | D11: - | E11: N/A
A12: A | B12: Argas persicus | C12: 35 | D12: N/A | E12: -
A13: A | B13: Argas persicus | C13: 114 | D13: N/A | E13: +
A14: A | B14: Chiropterargas boueti AG1 | C14: 25 | D14: - | E14: -
A15: A | B15: Chiropterargas boueti AG2 | C15: 26 | D15: + | E15: -
A16: A | B16: Chiropterargas boueti BP2 | C16: 28 | D16: - | E16: -
A17: A | B17: Ixodes angustus | C17: WA16-173 | D17: + | E17: N/A
A18: A | B18: Ixodes angustus | C18: WA16-187 | D18: - | E18: N/A
A19: A | B19: Ixodes pacificus | C19: female | D19: + | E19: N/A
A20: A | B20: Ixodes pacificus | C20: male | D20: + | E20: N/A
A21: A | B21: Nuttalliella namaqua HVP | C21: 19 | D21: + | E21: N/A
A22: A | B22: Nuttalliella namaqua Krymekaar | C22: 34 | D22: - | E22: N/A
A23: A | B23: Ornithodoros erraticus | C23: 1 | D23: N/A | E23: +
A24: A | B24: Ornithodoros erraticus | C24: 2 | D24: N/A | E24: +
A25: A | B25: Ornithodoros moubata | C25: female1 | D25: weak | E25: N/A
A26: A | B26: Ornithodoros moubata PMO1 | C26: 70 | D26: - | E26: N/A
A27: A | B27: Ornithodoros moubata PMO2 | C27: 71 | D27: weak | E27: N/A
A28: A | B28: Ornithodoros phacochoerus KNP | C28: 116 | D28: - | E28: N/A
A29: A | B29: Ornithodoros phacochoerus Pafuri2 | C29: 79 | D29: - | E29: N/A
A30: A | B30: Ornithodoros phacochoerus Pafuri3 | C30: 78 | D30: - | E30: N/A
A31: A | B31: Ornithodoros waterbergensis SD2 | C31: 22 | D31: + | E31: N/A
A32: A | B32: Ornithodoros zumpti CAN | C32: 24 | D32: - | E32: N/A
A33: A | B33: Ornithodoros zumpti GS2 | C33: 73 | D33: - | E33: N/A
A34: A | B34: Proknekalia peringueyi 1 | C34: 13 | D34: N/A | E34: -
A35: A | B35: Proknekalia peringueyi 2 | C35: 14 | D35: N/A | E35: weak
A36: A | B36: Secretargas transgariepinus 1 | C36: 15 | D36: - | E36: -
A37: A | B37: Secretargas transgariepinus 2 | C37: 16 | D37: - | E37: -
A38: B | B38: Amblyomma maculatum | C38: 1 | D38: + | E38: N/A
A39: N/A = not assessed

Sheet Table S4
A1: Table S4. Mitogenome Sequencing and Assembly Results
A2: Group | B2: Sample | C2: Sample Identifier | D2: Library | E2: Number of Reads | F2: Bases | G2: Mean Read Length (bp) | H2: Read N50 (bp) | I2: Contigs | J2: Initial Assembly Size (bp) | K2: Final Assembly Size (bp) | L2: Mean Depth of Coverage | M2: NCBI BioSample
A3: A | B3: Alectorobius amblus*‡ | C3: 44 | D3: SQK-RBK110.96-1 | E3: 2,818 | F3: 9,262,834 | G3: 3,287 | H3: 5,968 | I3: 1 | J3: 15,260 | K3: 14,364 | L3: 630 | M3: SAMN28408701
A4: A | B4: Alectorobius atacamensis* | C4: 23 | D4: SQK-RBK110.96-1 | E4: 3,841 | F4: 13,121,443 | G4: 3,416 | H4: 6,818 | I4: 2 | J4: 28,847 | K4: 14,430 | L4: 1,073 | M4: SAMN28408710
A5: A | B5: Alectorobius atacamensis* | C5: 23 | D5: SQK-RBK110.96-2 | E5: 1,109 | F5: 2,765,783 | G5: 2,494 | H5: 5,052
A6: A | B6: Alectorobius capensis IQG | C6: 45 | D6: SQK-RBK110.96-1 | E6: 3,085 | F6: 11,630,820 | G6: 3,770 | H6: 7,115 | I6: 1 | J6: 14,414 | K6: 14,417 | L6: 781 | M6: SAMN28408697
A7: A | B7: Alectorobius capensis NPC | C7: 1 | D7: SQK-RBK110.96-1 | E7: 1,519 | F7: 5,216,303 | G7: 3,443 | H7: 6,053 | I7: 1 | J7: 14,408 | K7: 14,413 | L7: 356 | M7: SAMN28408698
A8: A | B8: Alectorobius capensis St. Croix | C8: 29 | D8: SQK-RBK004 | E8: 1,753 | F8: 4,616,062 | G8: 2,633 | H8: 4,098 | I8: 2 | J8: 16,212 | K8: 14,415 | L8: 298 | M8: SAMN28512635
A9: A | B9: Alectorobius cavernicolous† | C9: 1 | D9: SQK-RBK110.96-1 | E9: 7 | F9: 16,396 | G9: 2,342 | H9: 4,043 | I9: NA | J9: NA | K9: NA | L9: NA | M9: SAMN28534442
A10: A | B10: Alectorobius cerradoensis | C10: 2 | D10: SQK-RBK110.96-1 | E10: 1,173 | F10: 4,150,378 | G10: 3,538 | H10: 6,175 | I10: 1 | J10: 28,823 | K10: 14,415 | L10: 280 | M10: SAMN28408703
A11: A | B11: Alectorobius cerradoensis | C11: 1 | D11: SQK-RBK110.96-1 | E11: 4,695 | F11: 16,420,628 | G11: 3,498 | H11: 5,710 | I11: 1 | J11: 28,822 | K11: 14,415 | L11: 1,114 | M11: SAMN28408702
A12: A | B12: Alectorobius fonsecai*‡ | C12: 6 | D12: SQK-RBK110.96-1 | E12: 1,530 | F12: 5,553,820 | G12: 3,630 | H12: 6,585 | I12: 2 | J12: 15,398 | K12: 14,708 | L12: 372 | M12: SAMN28408721
A13: A | B13: Alectorobius fonsecai | C13: 7 | D13: SQK-RBK110.96-1 | E13: 1,724 | F13: 5,655,163 | G13: 3,280 | H13: 5,864 | I13: 1 | J13: 28,804 | K13: 14,404 | L13: 1,460 | M13: SAMN28408722
A14: A | B14: Alectorobius fonsecai | C14: 7 | D14: SQK-RBK110.96-2 | E14: 4,898 | F14: 15,907,105 | G14: 3,248 | H14: 5,815
A15: A | B15: Alectorobius guaporensis | C15: 1 | D15: SQK-RBK110.96-1 | E15: 2,038 | F15: 6,521,159 | G15: 3,200 | H15: 6,456 | I15: 2 | J15: 32,680 | K15: 14,416 | L15: 435 | M15: SAMN28408706
A16: A | B16: Alectorobius guaporensis | C16: 2 | D16: SQK-RBK110.96-1 | E16: 1,017 | F16: 3,381,123 | G16: 3,325 | H16: 6,171 | I16: 2 | J16: 31,625 | K16: 14,416 | L16: 215 | M16: SAMN28408707
A17: A | B17: Alectorobius microlophi | C17: 10 | D17: SQK-RBK110.96-1 | E17: 2,690 | F17: 10,780,360 | G17: 4,008 | H17: 7,268 | I17: 1 | J17: 14,402 | K17: 14,409 | L17: 735 | M17: SAMN28408712
A18: A | B18: Alectorobius microlophi | C18: 17 | D18: SQK-RBK110.96-1 | E18: 2,061 | F18: 7,033,951 | G18: 3,413 | H18: 7,530 | I18: 1 | J18: 14,404 | K18: 14,409 | L18: 475 | M18: SAMN28408711
A19: A | B19: Alectorobius mimon | C19: 2 | D19: SQK-RBK110.96-1 | E19: 982 | F19: 3,114,480 | G19: 3,172 | H19: 5,320 | I19: 1 | J19: 14,406 | K19: 14,410 | L19: 219 | M19: SAMN28408717
A20: A | B20: Alectorobius mimon | C20: 2 | D20: SQK-RBK110.96-2 | E20: 92 | F20: 134,691 | G20: 1,464 | H20: 1,791
A21: A | B21: Alectorobius mimon | C21: 3 | D21: SQK-RBK110.96-1 | E21: 1,778 | F21: 5,587,141 | G21: 3,142 | H21: 5,470 | I21: 1 | J21: 28,812 | K21: 14,406 | L21: 857 | M21: SAMN28408718
A22: A | B22: Alectorobius mimon | C22: 3 | D22: SQK-RBK110.96-2 | E22: 2,265 | F22: 7,026,314 | G22: 3,102 | H22: 5,849
A23: A | B23: Alectorobius peropteryx | C23: 1 | D23: SQK-RBK110.96-1 | E23: 2,114 | F23: 6,955,207 | G23: 3,290 | H23: 5,718 | I23: 1 | J23: 14,399 | K23: 14,404 | L23: 977 | M23: SAMN28408719
A24: A | B24: Alectorobius peropteryx | C24: 1 | D24: SQK-RBK110.96-2 | E24: 2,530 | F24: 7,498,742 | G24: 2,964 | H24: 6,044
A25: A | B25: Alectorobius peropteryx | C25: 2 | D25: SQK-RBK110.96-2 | E25: 3,568 | F25: 11,681,897 | G25: 3,274 | H25: 5,802 | I25: 2 | J25: 28,796 | K25: 14,404 | L25: 787 | M25: SAMN28408720
A26: A | B26: Alectorobius peruvianus | C26: solo | D26: SQK-RBK110.96-1 | E26: 1,053 | F26: 5,168,948 | G26: 3,439 | H26: 5,936 | I26: 2 | J26: 16,749 | K26: 14,401 | L26: 324 | M26: SAMN28408723
A27: A | B27: Alectorobius puertoricensis | C27: 1 | D27: SQK-RBK110.96-1 | E27: 1,536 | F27: 5,318,584 | G27: 3,463 | H27: 5,843 | I27: 1 | J27: 28,842 | K27: 14,424 | L27: 361 | M27: SAMN28408704
A28: A | B28: Alectorobius puertoricensis | C28: 3 | D28: SQK-RBK110.96-1 | E28: 1,692 | F28: 5,879,679 | G28: 3,475 | H28: 6,533 | I28: 1 | J28: 28,844 | K28: 14,424 | L28: 396 | M28: SAMN28408705
A29: A | B29: Alectorobius rietcorreai | C29: 2 | D29: SQK-RBK110.96-1 | E29: 993 | F29: 3,778,561 | G29: 3,805 | H29: 6,560 | I29: 1 | J29: 28,847 | K29: 14,424 | L29: 253 | M29: SAMN28408714
A30: A | B30: Alectorobius rietcorreai | C30: 25 | D30: SQK-RBK110.96-1 | E30: 2,430 | F30: 6,798,192 | G30: 2,798 | H30: 5,047 | I30: 1 | J30: 28,864 | K30: 14,430 | L30: 437 | M30: SAMN28408713
A31: A | B31: Alectorobius rioplatensis | C31: 1 | D31: SQK-RBK110.96-1 | E31: 761 | F31: 3,118,669 | G31: 4,098 | H31: 6,890 | I31: 1 | J31: 28,893 | K31: 14,451 | L31: 212 | M31: SAMN28408708
A32: A | B32: Alectorobius rioplatensis | C32: 2 | D32: SQK-RBK110.96-1 | E32: 1,705 | F32: 6,073,172 | G32: 3,562 | H32: 5,743 | I32: 1 | J32: 28,890 | K32: 14,450 | L32: 413 | M32: SAMN28408709
A33: A | B33: Alectorobius spheniscus*‡ | C33: 36 | D33: SQK-RBK110.96-1 | E33: 2,241 | F33: 7,069,458 | G33: 3,155 | H33: 5,690 | I33: 1 | J33: 14,618 | K33: 14,624 | L33: 476 | M33: SAMN28408699
A34: A | B34: Alectorobius spheniscus*‡ | C34: 38 | D34: SQK-RBK110.96-1 | E34: 2,082 | F34: 6,217,201 | G34: 2,986 | H34: 5,254 | I34: 1 | J34: 14,569 | K34: 14,575 | L34: 418 | M34: SAMN28408700
A35: A | B35: Alectorobius tabajara | C35: 29B | D35: SQK-RBK110.96-1 | E35: 2,070 | F35: 6,702,811 | G35: 3,238 | H35: 5,569 | I35: 1 | J35: 14,466 | K35: 14,466 | L35: 431 | M35: SAMN28408715
A36: A | B36: Alectorobius tabajara | C36: 30A | D36: SQK-RBK110.96-1 | E36: 2,938 | F36: 10,230,739 | G36: 3,482 | H36: 5,734 | I36: 2 | J36: 17,181 | K36: 14,467 | L36: 687 | M36: SAMN28408716
A37: A | B37: Argas sp. San Antonio | C37: nymph | D37: SQK-RBK110.96-2 | E37: 2,890 | F37: 8,746,884 | G37: 3,027 | H37: 6,330 | I37: 1 | J37: 14,447 | K37: 14,454 | L37: 582 | M37: SAMN28408724
A38: A | B38: Argas africolumbae JM2*‡ | C38: 33 | D38: SQK-RBK110.96-1 | E38: 1,274 | F38: 4,121,921 | G38: 3,235 | H38: 5,683 | I38: 1 | J38: 14,388 | K38: 14,402 | L38: 279 | M38: SAMN28512636
A39: A | B39: Argas persicus | C39: 35 | D39: SQK-RBK110.96-2 | E39: 2,147 | F39: 8,236,274 | G39: 3,836 | H39: 6,896 | I39: 2 | J39: 28,839 | K39: 14,424 | L39: 544 | M39: SAMN28408725
A40: A | B40: Argas ricei | C40: male | D40: SQK-RBK110.96-1 | E40: 1,940 | F40: 5,431,812 | G40: 2,800 | H40: 5,976 | I40: 1 | J40: 28,861 | K40: 14,450 | L40: 356 | M40: SAMN28408726
A41: A | B41: Ixodes angustus | C41: WA-173 | D41: SQK-RBK110.96-2 | E41: 1,713 | F41: 7,281,024 | G41: 4,521 | H41: 7,541 | I41: 1 | J41: 29,052 | K41: 14,529 | L41: 490 | M41: SAMN28408727
A42: A | B42: Ixodes pacificus | C42: female | D42: SQK-RBK110.96-1 | E42: 1,944 | F42: 5,047,415 | G42: 2,596 | H42: 5,535 | I42: 1 | J42: 29,132 | K42: 14,576 | L42: 1,198 | M42: SAMN28408729
A43: A | B43: Ixodes pacificus | C43: female | D43: SQK-RBK110.96-2 | E43: 4,609 | F43: 13,480,567 | G43: 2,925 | H43: 6,128
A44: A | B44: Ixodes pacificus | C44: male | D44: SQK-RBK110.96-1 | E44: 1,380 | F44: 3,703,615 | G44: 2,684 | H44: 5,278 | I44: 1 | J44: 14,565 | K44: 14,577 | L44: 597 | M44: SAMN28408728
A45: A | B45: Ixodes pacificus | C45: male | D45: SQK-RBK110.96-2 | E45: 2,399 | F45: 5,684,313 | G45: 2,370 | H45: 5,069
A46: A | B46: Ixodes ricinus | C46: 3 | D46: SQK-RBK110.96-1 | E46: 1,742 | F46: 4,001,045 | G46: 2,297 | H46: 5,094 | I46: 1 | J46: 14,564 | K46: 14,572 | L46: 250 | M46: SAMN28408730
A47: A | B47: Ixodes rubicundus | C47: 7 | D47: SQK-RBK004 | E47: 664 | F47: 1,523,321 | G47: 2,294 | H47: 4,554 | I47: 1 | J47: 14,521 | K47: 14,532 | L47: 96 | M47: SAMN28512637
A48: A | B48: Ixodes scapularis | C48: 2 | D48: SQK-RBK110.96-1 | E48: 2,044 | F48: 5,978,831 | G48: 2,925 | H48: 5,456 | I48: 1 | J48: 29,064 | K48: 14,543 | L48: 399 | M48: SAMN28408731
A49: A | B49: Ixodes scapularis | C49: 3 | D49: SQK-RBK110.96-1 | E49: 2,043 | F49: 5,499,771 | G49: 2,692 | H49: 5,729 | I49: 1 | J49: 29,062 | K49: 14,541 | L49: 363 | M49: SAMN28408732
A50: A | B50: Nuttalliella namaqua HVP | C50: 19 | D50: SQK-RBK110.96-2 | E50: 3,305 | F50: 9,922,898 | G50: 3,002 | H50: 6,303 | I50: 1 | J50: 14,419 | K50: 14,427 | L50: 676 | M50: SAMN28512638
A51: A | B51: Ogadenus brumpti L1 | C51: 17 | D51: SQK-RBK110.96-2 | E51: 1,418 | F51: 4,765,079 | G51: 3,360 | H51: 6,720 | I51: 1 | J51: 28,979 | K51: 14,519 | L51: 318 | M51: SAMN28512639
A52: A | B52: Ogadenus brumpti L2 | C52: 18 | D52: SQK-RBK004 | E52: 2,110 | F52: 6,045,295 | G52: 2,865 | H52: 4,821 | I52: 1 | J52: 14,494 | K52: 14,508 | L52: 403 | M52: SAMN28512640
A53: A | B53: Ornithodoros compactus K2 | C53: 9 | D53: SQK-RBK110.96-1 | E53: 1,865 | F53: 6,338,277 | G53: 3,399 | H53: 5,899 | I53: 1 | J53: 28,800 | K53: 14,400 | L53: 425 | M53: SAMN28512641
A54: A | B54: Ornithodoros erracticus | C54: 1 | D54: SQK-RBK110.96-1 | E54: 1,045 | F54: 3,277,266 | G54: 3,136 | H54: 5,229 | I54: 1 | J54: 14,434 | K54: 14,441 | L54: 586 | M54: SAMN28408733
A55: A | B55: Ornithodoros erracticus | C55: 1 | D55: SQK-RBK110.96-2 | E55: 1,527 | F55: 5,482,646 | G55: 3,591 | H55: 6,878
A56: A | B56: Ornithodoros erracticus | C56: 2 | D56: SQK-RBK110.96-1 | E56: 2,473 | F56: 6,243,003 | G56: 2,525 | H56: 3,857 | I56: 1 | J56: 28,878 | K56: 14,441 | L56: 1,077 | M56: SAMN28408734
A57: A | B57: Ornithodoros erracticus | C57: 2 | D57: SQK-RBK110.96-2 | E57: 2,801 | F57: 9,951,139 | G57: 3,553 | H57: 6,632
A58: A | B58: Ornithodoros furcosus | C58: 1 | D58: SQK-RBK110.96-1 | E58: 1,889 | F58: 4,772,737 | G58: 2,527 | H58: 4,475 | I58: 3 | J58: 18,483 | K58: 14,436 | L58: 243 | M58: SAMN28408735
A59: A | B59: Ornithodoros furcosus | C59: 2 | D59: SQK-RBK110.96-1 | E59: 1,568 | F59: 5,692,083 | G59: 3,630 | H59: 6,594 | I59: 1 | J59: 28,870 | K59: 14,436 | L59: 329 | M59: SAMN28408736
A60: A | B60: Ornithodoros hermsi SIS | C60: 3 | D60: SQK-RBK110.96-1 | E60: 2,251 | F60: 7,616,312 | G60: 3,834 | H60: 5,572 | I60: 1 | J60: 14,419 | K60: 14,428 | L60: 513 | M60: SAMN28408737
A61: A | B61: Ornithodoros moubata | C61: female1 | D61: SQK-RBK110.96-1 | E61: 1,584 | F61: 4,822,985 | G61: 3,045 | H61: 4,941 | I61: 1 | J61: 28,798 | K61: 14,399 | L61: 320 | M61: SAMN28408738
A62: A | B62: Ornithodoros noorsveldensis | C62: 111 | D62: SQK-RBK110.96-1 | E62: 2,395 | F62: 7,995,621 | G62: 3,389 | H62: 5,350 | I62: 1 | J62: 14,417 | K62: 14,420 | L62: 543 | M62: SAMN28408739
A63: A | B63: Ornithodoros phacochoerus Pafuri3* | C63: 78 | D63: SQK-RBK110.96-1 | E63: 1,622 | F63: 5,075,027 | G63: 3,129 | H63: 5,463 | I63: 1 | J63: 15,174 | K63: 14,554 | L63: 340 | M63: SAMN28408740
A64: A | B64: Ornithodoros rudis | C64: 2 | D64: SQK-RBK110.96-1 | E64: 2,459 | F64: 8,898,521 | G64: 3,619 | H64: 6,408 | I64: 1 | J64: 28,787 | K64: 14,399 | L64: 604 | M64: SAMN28408742
A65: A | B65: Ornithodoros rudis | C65: 11 | D65: SQK-RBK110.96-1 | E65: 1,284 | F65: 5,112,864 | G65: 3,982 | H65: 7,310 | I65: 1 | J65: 14,390 | K65: 14,395 | L65: 328 | M65: SAMN28408741
A66: A | B66: Ornithodoros tartakovskyi | C66: 1 | D66: SQK-RBK110.96-1 | E66: 1,341 | F66: 4,200,273 | G66: 3,132 | H66: 5,698 | I66: 1 | J66: 28,794 | K66: 14,398 | L66: 282 | M66: SAMN28408744
A67: A | B67: Ornithodoros tartakovskyi | C67: 2 | D67: SQK-RBK110.96-1 | E67: 1,347 | F67: 5,042,497 | G67: 3,744 | H67: 6,678 | I67: 1 | J67: 28,790 | K67: 14,398 | L67: 343 | M67: SAMN28408743
A68: A | B68: Ornithodoros turicata KAN | C68: 5 | D68: SQK-RBK110.96-1 | E68: 4,239 | F68: 14,255,302 | G68: 3,363 | H68: 5,128 | I68: 1 | J68: 14,455 | K68: 14,458 | L68: 970 | M68: SAMN28512642
A69: A | B69: Ornithodoros turicata NM | C69: 3 | D69: SQK-RBK110.96-1 | E69: 2,819 | F69: 8,402,594 | G69: 2,981 | H69: 4,838 | I69: 1 | J69: 14,442 | K69: 14,461 | L69: 570 | M69: SAMN28408745
A70: A | B70: Ornithodoros turicata Ocala | C70: 2 | D70: SQK-RBK110.96-1 | E70: 1,398 | F70: 4,534,491 | G70: 3,244 | H70: 5,976 | I70: 1 | J70: 14,453 | K70: 14,457 | L70: 307 | M70: SAMN28408746
A71: A | B71: Ornithodoros turicata Travis | C71: 5 | D71: SQK-RBK110.96-1 | E71: 2,223 | F71: 6,737,859 | G71: 3,031 | H71: 5,251 | I71: 1 | J71: 28,911 | K71: 14,459 | L71: 454 | M71: SAMN28408747
A72: A | B72: Ornithodoros verrucosus CHICH-C | C72: 1 | D72: SQK-RBK110.96-1 | E72: 1,019 | F72: 2,573,085 | G72: 2,525 | H72: 4,131 | I72: 1 | J72: 14,418 | K72: 14,421 | L72: 175 | M72: SAMN28408748
A73: A | B73: Ornithodoros verrucosus CHICH-C | C73: 2 | D73: SQK-RBK110.96-1 | E73: 1,727 | F73: 4,552,446 | G73: 2,636 | H73: 4,589 | I73: 1 | J73: 14,419 | K73: 14,422 | L73: 294 | M73: SAMN28408749
A74: A | B74: Ornithodoros waterbergensis SD2* | C74: 22 | D74: SQK-RBK110.96-1 | E74: 1,719 | F74: 5,139,095 | G74: 2,990 | H74: 4,603 | I74: 1 | J74: 28,766 | K74: 14,386 | L74: 702 | M74: SAMN28512643
A75: A | B75: Ornithodoros waterbergensis SD2* | C75: 22 | D75: SQK-RBK110.96-2 | E75: 3,006 | F75: 5,588,494 | G75: 1,859 | H75: 3,372
A76: A | B76: Ornithodoros zumpti GS2‡ | C76: 73 | D76: SQK-RBK110.96-1 | E76: 761 | F76: 2,868,432 | G76: 3,769 | H76: 6,656 | I76: 2 | J76: 16,966 | K76: 14,515 | L76: 186 | M76: SAMN28408750
A77: A | B77: Otobius lagophilus | C77: 4 | D77: SQK-RBK110.96-1 | E77: 2,569 | F77: 9,161,450 | G77: 3,566 | H77: 6,010 | I77: 1 | J77: 29,057 | K77: 14,535 | L77: 611 | M77: SAMN28408751
A78: A | B78: Otobius lagophilus | C78: 8 | D78: SQK-RBK110.96-1 | E78: 789 | F78: 2,912,241 | G78: 3,691 | H78: 6,278 | I78: 1 | J78: 14,530 | K78: 14,536 | L78: 188 | M78: SAMN28408752
A79: A | B79: Otobius lagophilus* | C79: N1 | D79: SQK-RBK110.96-2 | E79: 2,192 | F79: 7,094,210 | G79: 3,236 | H79: 6,684 | I79: 7 | J79: 14,522 | K79: 14,534 | L79: 446 | M79: SAMN28408753
A80: A | B80: Otobius megnini | C80: 31 | D80: SQK-RBK004 | E80: 754 | F80: 2,931,081 | G80: 3,887 | H80: 5,954 | I80: 1 | J80: 14,415 | K80: 14,428 | L80: 201 | M80: SAMN28512644
A81: A | B81: Proknekalia peringueyi 1* | C81: 13 | D81: SQK-RBK110.96-1 | E81: 1,819 | F81: 3,946,901 | G81: 2,170 | H81: 3,644 | I81: 1 | J81: 14,362 | K81: NA | L81: NA | M81: SAMN28534441
A82: A | B82: Reticulinasus faini 2 | C82: 82 | D82: SQK-RBK110.96-1 | E82: 1,779 | F82: 5,469,673 | G82: 3,075 | H82: 6,057 | I82: 1 | J82: 28,851 | K82: 14,431 | L82: 370 | M82: SAMN28408754
A83: B | B83: Amblyomma americanum | C83: 1 | D83: SQK-RBK110.96-1 | E83: 1,235 | F83: 2,703,481 | G83: 2,189 | H83: 4,200 | I83: 4 | J83: 25,754 | K83: 14,701 | L83: 170 | M83: SAMN28408755
A84: B | B84: Amblyomma hebraeum | C84: 50 | D84: SQK-RBK004 | E84: 627 | F84: 2,186,516 | G84: 3,487 | H84: 5,943 | I84: 1 | J84: 29,290 | K84: 14,655 | L84: 146 | M84: SAMN28512645
A85: B | B85: Amblyomma maculatum | C85: 1 | D85: SQK-RBK110.96-1 | E85: 1,502 | F85: 3,407,314 | G85: 2,269 | H85: 4,407 | I85: 1 | J85: 29,580 | K85: 14,801 | L85: 507 | M85: SAMN28408756
A86: B | B86: Amblyomma maculatum | C86: 1 | D86: SQK-RBK110.96-2 | E86: 1,455 | F86: 4,248,682 | G86: 2,920 | H86: 6,959
A87: B | B87: Amblyomma mixtum | C87: 1 | D87: SQK-RBK110.96-2 | E87: 3,880 | F87: 12,082,129 | G87: 3,114 | H87: 5,821 | I87: 1 | J87: 29,628 | K87: 14,821 | L87: 783 | M87: SAMN28408757
A88: B | B88: Amblyomma tholloni 1 | C88: 100 | D88: SQK-RBK004 | E88: 1,180 | F88: 3,321,448 | G88: 2,814 | H88: 5,142 | I88: 1 | J88: 14,653 | K88: 14,661 | L88: 208 | M88: SAMN28512646
A89: B | B89: Dermacentor albipictus | C89: 1 | D89: SQK-RBK110.96-2 | E89: 4,154 | F89: 14,248,968 | G89: 3,430 | H89: 6,291 | I89: 1 | J89: 29,720 | K89: 14,864 | L89: 939 | M89: SAMN28408758
A90: B | B90: Dermacentor albipictus | C90: 2 | D90: SQK-RBK110.96-1 | E90: 1,161 | F90: 3,100,454 | G90: 2,671 | H90: 4,572 | I90: 1 | J90: 29,702 | K90: 14,864 | L90: 204 | M90: SAMN28408759
A91: B | B91: Dermacentor variabilis | C91: 2 | D91: SQK-RBK110.96-1 | E91: 2,295 | F91: 6,851,373 | G91: 2,985 | H91: 5,629 | I91: 1 | J91: 29,665 | K91: 14,839 | L91: 449 | M91: SAMN28408760
A92: B | B92: Haemaphysalis longicornis | C92: 3 | D92: SQK-RBK110.96-1 | E92: 1,446 | F92: 4,535,642 | G92: 3,137 | H92: 6,050 | I92: 1 | J92: 29,388 | K92: 14,694 | L92: 299 | M92: SAMN28408761
A93: B | B93: Hyalomma marginatum* | C93: 1 | D93: SQK-RBK110.96-1 | E93: 2,390 | F93: 6,315,530 | G93: 2,643 | H93: 4,887 | I93: 1 | J93: 29,495 | K93: 14,760 | L93: 411 | M93: SAMN28408762
A94: B | B94: Rhipicephalus annulatus | C94: 1 | D94: SQK-RBK110.96-1 | E94: 1,567 | F94: 4,403,395 | G94: 2,810 | H94: 5,484 | I94: 1 | J94: 30,295 | K94: 15,156 | L94: 284 | M94: SAMN28408763
A95: B | B95: Rhipicephalus evertsi Kwanare | C95: 125 | D95: SQK-RBK110.96-1 | E95: 1,776 | F95: 3,550,601 | G95: 1,999 | H95: 3,851 | I95: 1 | J95: 14,740 | K95: 14,743 | L95: 190 | M95: SAMN28408764
A96: B | B96: Rhipicephalus maculatus 1 | C96: 44 | D96: SQK-RBK110.96-1 | E96: 2,072 | F96: 5,384,923 | G96: 2,599 | H96: 4,757 | I96: 1 | J96: 14,708 | K96: 14,714 | L96: 335 | M96: SAMN28512647
A97: B | B97: Rhipicephalus microplus | C97: 3 | D97: SQK-RBK110.96-1 | E97: 851 | F97: 2,453,075 | G97: 2,883 | H97: 6,098 | I97: 1 | J97: 15,155 | K97: 15,160 | L97: 159 | M97: SAMN28408765
A98: B | B98: Rhipicephalus sanguineus* | C98: 1 | D98: SQK-RBK110.96-1 | E98: 1,612 | F98: 4,379,714 | G98: 2,717 | H98: 4,876 | I98: 1 | J98: 30,141 | K98: 15,077 | L98: 283 | M98: SAMN28408766
A99: B | B99: Rhipichephalus simus | C99: 52 | D99: SQK-RBK110.96-1 | E99: 651 | F99: 2,273,961 | G99: 3,493 | H99: 6,591 | I99: 1 | J99: 14,720 | K99: 14,721 | L99: 149 | M99: SAMN28512648
A100: B | B100: Rhipicephalus zambeziensis | C100: 59 | D100: SQK-RBK110.96-1 | E100: 1,309 | F100: 3,000,354 | G100: 2,292 | H100: 4,479 | I100: 1 | J100: 14,736 | K100: 14,739 | L100: 186 | M100: SAMN28512649
A101: *Flye v2.9
A102: †amplified with primer set 1 only may have incomplete or compromised cox1 gene
A103: ‡amplified with primer set 2 only may have incomplete or compromised 16s rRNA gene
A104: NA= Not assessed

Sheet Table S5
A1: Table S5. Nanopore Mitogenome Assembly Benchmarking
A2: Group | B2: Sample | C2: Insertions | D2: Deletions | E2: Substitutions | F2: Total Nucleotide Differences | G2: Sequence Agreement (%) | H2: GenBank Reference
A3: A | B3: Alectorobius capensis St. Croix | C3: 1 | D3: 6 | E3: 5 | F3: 12 | G3: =(1-(SUM(F3)/14418))*100 -> 99.92 | H3: KJ133587
A4: A | B4: Alectorobius capensis St. Croix manually corrected | C4: 1 | D4: 4 | E4: 5 | F4: 10 | G4: =(1-(SUM(F4)/14418))*100 -> 99.93 | H4: KJ133587
A5: A | B5: Argas africolumbae JM2* | C5: 0 | D5: 5 | E5: 0 | F5: 40 | G5: =(1-(F5/14440))*100 -> 99.72 | H5: NC_019642
A6: A | B6: Argas africolumbae JM2 masked* | C6: 0 | D6: 4 | E6: 0 | F6: 5 | G6: =(1-(F6/14440))*100 -> 99.97 | H6: NC_019642
A7: A | B7: Argas africolumbae JM2 masked, manually corrected* | C7: 0 | D7: 2 | E7: 0 | F7: 3 | G7: =(1-(F7/14440))*100 -> 99.98 | H7: NC_019642
A8: A | B8: Ixodes rubicundus | C8: 12 | D8: 10 | E8: 78 | F8: 123 | G8: =(1-(SUM(F8)/14539))*100 -> 99.15 | H8: KY457530
A9: A | B9: Ixodes rubicundus manually corrected | C9: 12 | D9: 9 | E9: 78 | F9: 122 | G9: =(1-(SUM(F9)/14539))*100 -> 99.16 | H9: KY457530
A10: A | B10: Nuttalliella namaqua HVP | C10: 1 | D10: 1 | E10: 0 | F10: 2 | G10: =(1-(SUM(F10)/14427))*100 -> 99.99 | H10: KR907248
A11: A | B11: Nuttalliella namaqua HVP manually corrected | C11: 0 | D11: 0 | E11: 1 | F11: 1 | G11: =(1-(SUM(F11)/14427))*100 -> 99.99 | H11: KR907248
A12: A | B12: Ogadenus brumpti L1 | C12: 0 | D12: 7 | E12: 17 | F12: 32 | G12: =(1-(F12/14519))*100 -> 99.78 | H12: KY457510
A13: A | B13: Ogadenus brumpti L1 manually corrected | C13: 0 | D13: 0 | E13: 17 | F13: 25 | G13: =(1-(F13/14519))*100 -> 99.83 | H13: KY457510
A14: A | B14: Ogadenus brumpti L2 | C14: 0 | D14: 9 | E14: 6 | F14: 30 | G14: =(1-(F14/14519))*100 -> 99.79 | H14: KY457511
A15: A | B15: Ogadenus brumpti L2 | C15: 0 | D15: 9 | E15: 1 | F15: 19 | G15: =(1-(F15/14519))*100 -> 99.87 | H15: KY457511 with Sanger correction
A16: A | B16: Ogadenus brumpti L2 manually corrected | C16: 0 | D16: 2 | E16: 1 | F16: 11 | G16: =(1-(F16/14519))*100 -> 99.92 | H16: KY457511 with Sanger correction
A17: A | B17: Ornithodoros compactus K2 | C17: 0 | D17: 0 | E17: 0 | F17: 0 | G17: =100-(SUM(F17)/14400) -> 100.00 | H17: KY457534
A18: A | B18: Ornithodoros turicata KAN | C18: 0 | D18: 1 | E18: 0 | F18: 1 | G18: =(1-(F18/14458))*100 -> 99.99 | H18: NC_039829
A19: A | B19: Ornithodoros turicata KAN manually corrected | C19: 0 | D19: 0 | E19: 0 | F19: 0 | G19: =(1-(F19/14458))*100 -> 100.00 | H19: NC_039829
A20: A | B20: Ornithodoros waterbergensis SD2 | C20: 0 | D20: 2 | E20: 0 | F20: 2 | G20: =(1-(SUM(F20)/14642))*100 -> 99.99 | H20: KR907251
A21: A | B21: Ornithodoros waterbergensis SD2 manually corrected | C21: 0 | D21: 0 | E21: 0 | F21: 0 | G21: =(1-(SUM(F21)/14642))*100 -> 100.00 | H21: KR907251
A22: A | B22: Otobius megnini | C22: 2 | D22: 4 | E22: 0 | F22: 8 | G22: =(1-(SUM(F22)/14426))*100 -> 99.94 | H22: KJ133592
A23: A | B23: Otobius megnini manually corrected | C23: 2 | D23: 1 | E23: 0 | F23: 4 | G23: =(1-(SUM(F23)/14426))*100 -> 99.97 | H23: KJ133592
A24: B | B24: Amblyomma hebraeum | C24: 0 | D24: 5 | E24: 0 | F24: 5 | G24: =(1-(F24/14657))*100 -> 99.97 | H24: KY457512
A25: B | B25: Amblyomma hebraeum manually corrected | C25: 0 | D25: 2 | E25: 0 | F25: 2 | G25: =(1-(F25/14657))*100 -> 99.99 | H25: KY457512
A26: B | B26: Amblyomma tholloni 1 | C26: 10 | D26: 14 | E26: 31 | F26: 103 | G26: =(1-(SUM(F26)/14642))*100 -> 99.30 | H26: KY457521
A27: B | B27: Amblyomma tholloni 1 | C27: 1 | D27: 7 | E27: 7 | F27: 22 | G27: =(1-(SUM(F27)/14642))*100 -> 99.85 | H27: KY457521 with Sanger correction
A28: B | B28: Amblyomma tholloni 1 manually corrected | C28: 1 | D28: 5 | E28: 7 | F28: 20 | G28: =(1-(SUM(F28)/14642))*100 -> 99.86 | H28: KY457521 with Sanger correction
A29: B | B29: Rhipicephalus maculatus 1 | C29: 0 | D29: 1 | E29: 0 | F29: 1 | G29: =(1-(SUM(F29)/14714))*100 -> 99.99 | H29: KY457539
A30: B | B30: Rhipicephalus maculatus 1 manually corrected | C30: 0 | D30: 0 | E30: 0 | F30: 0 | G30: =(1-(SUM(F30)/14714))*100 -> 100.00 | H30: KY457539
A31: B | B31: Rhipicephalus simus | C31: 0 | D31: 0 | E31: 0 | F31: 0 | G31: =(1-(SUM(F31)/14721))*100 -> 100.00 | H31: KY457542
A32: B | B32: Rhipicephalus zambeziensis | C32: 2 | D32: 1 | E32: 2 | F32: 51 | G32: =(1-(SUM(F32)/14691))*100 -> 99.65 | H32: KY457543
A33: B | B33: Rhipicephalus zambeziensis | C33: 1 | D33: 1 | E33: 2 | F33: 21 | G33: =(1-(SUM(F33)/14691))*100 -> 99.86 | H33: KY457543 with Sanger correction
A34: B | B34: Rhipicephalus zambeziensis manually corrected | C34: 1 | D34: 0 | E34: 2 | F34: 20 | G34: =(1-(SUM(F34)/14691))*100 -> 99.86 | H34: KY457543 with Sanger correction
A35: *=only the P2 amplicon amplified from the 16s site was sequenced

Sheet Table S6
A1: Table S6. Pairwise Sequence Analysis of O. turicata and O. parkeri Mitogenomes
B3: O. turicata KAN | C3: O. turicata Travis | D3: O. turicata Ocala | E3: O. turicata FLO | F3: O. parkeri SLO
A4: O. turicata KAN | B4: 100.0 | C4: - | D4: - | E4: - | F4: -
A5: O. turicata Travis | B5: 99.6 | C5: 100.0 | D5: - | E5: - | F5: -
A6: O. turicata Ocala | B6: 98.9 | C6: 98.9 | D6: 100.0 | E6: - | F6: -
A7: O. turicata FLO | B7: 86.3 | C7: 86.2 | D7: 86.1 | E7: 100.0 | F7: -
A8: O. parkeri SLO | B8: 86.0 | C8: 86.0 | D8: 85.9 | E8: 98.8 | F8: 100.0

Sheet Table S7
A1: Table S7. Cost Analysis
A2: Cost per Individual Sample for Mitogenome Amplification
A3: PCR Mastermix | B3: $3.14 | C3: 2 reactions per sample (ThermoFisher SuperFi PCR Master Mix, cat# 12358010)
A4: Qubit 1x dsDNA BR kit | B4: $1.50 | C4: Measuring P1 and P2 PCR reactions (ThermoFisher, Qubit 1x dsDNA High Sensitivity (HS) Assay kit, cat# Q33231)
A5: MagBind TotalPure NGS Beads | B5: $0.50 | C5: Pooled PCR cleanup prior to library prep (OmegaBiotek, Mag-Bind TotalPure NGS beads cat# M1378-01)
A7: Cost per Sequencing Library | B7: For 96 Samples | C7: For 48 Samples | D7: For 24 Samples
A8: 1 library prep of SQK-RBK110.96 | B8: $330 | C8: $165 | D8: $82.50 | E8: The initial purchase cost is $990 but it provides enough reagents for 3x96 samples or 12x24 samples (Oxford Nanopore Technologies, Rapid Barcoding Kit 96 cat# SQK-RBK110.96)
A9: R10.3 flow cell-16hr run time | B9: $200 | C9: $200 | D9: $200 | E9: The intial purchase cost of the flow cell is $900 however they have a total run time of ~72hr so we determined the cost for the amount of time used on the flow cell since the flow cell could be reused. We used a fixed run time based on an overnight sequencing run, suitable for 96 samples, for this calculation but the sequencing time could be adjusted for smaller libraries and the cost would be cheaper. (Oxford Nanopore Technologies, cat# FLO-MIN111)
A10: Qubit dsDNA BR kit | B10: $0.75 | C10: $0.75 | D10: $0.75
A11: Total Amplification and Sequencing Cost (per library) | B11: $1,024.19 | C11: $627.47 | D11: $429.00
A12: Total Amplification and Sequencing Cost (per sample) | B12: =B11/96 -> $10.67 | C12: =C11/48 -> $13.07 | D12: =D11/24 -> $17.88
A13: Notes=Prices here do not reflect insitutitionally negotiated discounts with vendors. Only prices >$0.25 per sample are shown, tips, tubes, and other miscellany not factored in here.

Sheet Table S8
A1: Table S7. Sample Metadata
A2: Group | B2: Sample | C2: Sample Identifier | D2: Collection Site | E2: Source | F2: Reference
A3: A | B3: Alectorobius amblus | C3: 44 | D3: Isla Pan de Azucar, Atacama, Chile | E3: SML* | F3: This study
A4: A | B4: Alectorobius atacamensis | C4: 23 | D4: Parque Nacional Pan de Azúcar, Atacama, Chile | E4: SML* | F4: Muñoz-Leal et al. 2019. doi: 10.1016/j.actatropica.2019.02.002
A5: A | B5: Alectorobius capensis | C5: 42 | D5: Cape Town, South Africa | E5: BJM | F5: Mans et al. 2019. doi: 10.1016/j.ttbdis.2018.09.010.
A6: A | B6: Alectorobius capensis Bird Island | C6: 30 | D6: Bird Island, South Africa | E6: BJM | F6: Mans et al. 2019. doi: 10.1016/j.ttbdis.2018.09.010.
A7: A | B7: Alectorobius capensis IQG | C7: 45 | D7: Ilha Queimada Grande, SP, Brazil | E7: MBL* | F7: Munoz-Leal et al. 2017. doi: 10.11158/saa.22.1.5
A8: A | B8: Alectorobius capensis NPC | C8: 1 | D8: Nacional Parque Coiba, Isla de Coiba, Panama | E8: JEL | F8: Munoz-Leal et al. 2020 doi: 10.1007/s10493-020-00516-z
A9: A | B9: Alectorobius capensis St.Croix | C9: 29 | D9: St. Croix, South Africa | E9: BJM | F9: Mans et al. 2019. doi: 10.1016/j.ttbdis.2018.09.010.
A10: A | B10: Alectorobius cavernicolous | C10: 4 | D10: Monte Negro, RO, Brazil | E10: SML* | F10: Muñoz-Leal et al. 2018. doi: 10.11158/saa.23.11.4
A11: A | B11: Alectorobius cavernicolous | C11: 5 | D11: Monte Negro, RO, Brazil | E11: SML* | F11: Muñoz-Leal et al. 2018. doi: 10.11158/saa.23.11.4
A12: A | B12: Alectorobius cavernicolous | C12: 1 | D12: Araguapaz, Goiás, Brazil | E12: SML | F12: This study
A13: A | B13: Alectorobius cavernicolous | C13: 2 | D13: Araguapaz, Goiás, Brazil | E13: SML | F13: This study
A14: A | B14: Alectorobius cerradoensis | C14: 2 | D14: Araguapaz, Goiás, Brazil | E14: SML | F14: Muñoz-Leal et al. 2020. doi: 10.1016/j.ttbdis.2020.101497
A15: A | B15: Alectorobius cerradoensis | C15: 1 | D15: Araguapaz, Goiás, Brazil | E15: SML | F15: Muñoz-Leal et al. 2020. doi: 10.1016/j.ttbdis.2020.101497
A16: A | B16: Alectorobius fonsecai | C16: 7 | D16: Furna Araticum, CE, Brazil | E16: SML* | F16: Muñoz-Leal et al. 2021. doi: 10.3201/eid2701.200349
A17: A | B17: Alectorobius fonsecai | C17: 6 | D17: Furna Araticum, CE, Brazil | E17: SML* | F17: Muñoz-Leal et al. 2021. doi: 10.3201/eid2701.200349
A18: A | B18: Alectorobius guaporensis | C18: 2 | D18: Guporé River, Bolivia (Laboratory Colony) | E18: MBL | F18: Nava et al. 2013. doi: 10.11646/zootaxa.3666.4.10
A19: A | B19: Alectorobius guaporensis | C19: 1 | D19: Guporé River, Bolivia (Laboratory Colony) | E19: MBL | F19: Nava et al. 2013. doi: 10.11646/zootaxa.3666.4.10
A20: A | B20: Alectorobius hasei | C20: 37 | D20: Serinhaém, PE, Brazil | E20: SML* | F20: Muñoz-Leal et al. 2018. doi: 10.1007/s10493-018-0330-3
A21: A | B21: Alectorobius hasei | C21: 1 | D21: Jericoacoara, Ceará, Brazil | E21: SML | F21: Muñoz-Leal et al. 2021. doi: 10.3201/eid2701.200349
A22: A | B22: Alectorobius hasei | C22: 2 | D22: Jericoacoara, Ceará, Brazil | E22: SML | F22: Muñoz-Leal et al. 2021. doi: 10.3201/eid2701.200349
A23: A | B23: Alectorobius lahillei | C23: 21 | D23: RN Las Chinchillas, Comquimbo, Chile | E23: SML* | F23: Muñoz-Leal et al. 2019. doi: 10.1016/j.actatropica.2019.02.002
A24: A | B24: Alectorobius microlophi | C24: 10 | D24: RN Pampa del Tamarugal, Tarapacá, Chile | E24: SML* | F24: Muñoz-Leal et al. 2019. doi: 10.1016/j.actatropica.2019.02.002
A25: A | B25: Alectorobius microlophi | C25: 13 | D25: Santa Maria Island, Antofagasta, Chile | E25: SML* | F25: This study
A26: A | B26: Alectorobius microlophi | C26: 17 | D26: RN Pampa del Tamarugal, Tarapacá, Chile | E26: SML* | F26: Muñoz-Leal et al. 2019. doi: 10.1016/j.actatropica.2019.02.002
A27: A | B27: Alectorobius mimon | C27: 2 | D27: Cuiabá, MT, Brazil | E27: SML | F27: Muñoz-Leal et al. 2021. doi: 10.3201/eid2701.200349
A28: A | B28: Alectorobius mimon | C28: 3 | D28: Cuiabá, MT, Brazil | E28: SML | F28: Muñoz-Leal et al. 2021. doi: 10.3201/eid2701.200349
A29: A | B29: Alectorobius mimon | C29: 1 | D29: Formosa da Serra Negra, Maranhão, Brazil | E29: SML | F29: Muñoz-Leal et al. 2021. doi: 10.3201/eid2701.200349
A30: A | B30: Alectorobius octodontus | C30: 19 | D30: RN Las Chinchillas, Comquimbo, Chile | E30: SML* | F30: Muñoz-Leal et al. 2020. doi: 10.1016/j.ttbdis.2020.101385
A31: A | B31: Alectorobius octodontus | C31: 22 | D31: RN Las Chinchillas, Comquimbo, Chile | E31: SML* | F31: Muñoz-Leal et al. 2020. doi: 10.1016/j.ttbdis.2020.101385
A32: A | B32: Alectorobius octodontus | C32: 27 | D32: Alcohuaz, Coquimbo, Chile | E32: SML* | F32: Muñoz-Leal et al. 2020. doi: 10.1016/j.ttbdis.2020.101385
A33: A | B33: Alectorobius peropteryx | C33: 2 | D33: Monte Negro, Rondônia, Brazil | E33: SML | F33: Muñoz-Leal et al. 2018. doi: 10.11158/saa.23.11.4
A34: A | B34: Alectorobius peropteryx | C34: 1 | D34: Monte Negro, Rondônia, Brazil | E34: SML | F34: Muñoz-Leal et al. 2018. doi: 10.11158/saa.23.11.4
A35: A | B35: Alectorobius peruvianus | C35: 14 | D35: Taltal, Antofagasta, Chile | E35: SML* | F35: Muñoz-Leal et al. 2020. doi: 10.1007/s11230-020-09908-6
A36: A | B36: Alectorobius peruvianus | C36: solo | D36: Taltal, Antofagasta, Chile | E36: SML | F36: Muñoz-Leal et al. 2020. doi: 10.1007/s11230-020-09908-6
A37: A | B37: Alectorobius puertoricensis | C37: 1 | D37: Parque Municipal Summit, Summit, Panama | E37: JEL | F37: Bermúdez et al. 2021. doi: 10.1371/journal.pntd.0009642
A38: A | B38: Alectorobius puertoricensis | C38: 3 | D38: Parque Municipal Summit, Summit, Panama | E38: JEL | F38: Bermúdez et al. 2021. doi: 10.1371/journal.pntd.0009642
A39: A | B39: Alectorobius rietcorreai | C39: 2 | D39: Chapadinha, Maranhão, Brazil | E39: SML | F39: Muñoz-Leal et al. 2019. doi: 10.1016/j.tmaid.2019.03.005
A40: A | B40: Alectorobius rietcorreai | C40: 25 | D40: Serra das Almas, CE, Brazil | E40: SML* | F40: Muñoz-Leal et al. 2021. doi: 10.3201/eid2701.200349
A41: A | B41: Alectorobius rioplatensis | C41: 1 | D41: Artigas, Uruguay (Laboratory Colony) | E41: SML | F41: Venzal et al. 2008. doi: 10.1603/0022-2585(2008)45[832:toatsg]2.0.co;2
A42: A | B42: Alectorobius rioplatensis | C42: 2 | D42: Artigas, Uruguay (Laboratory Colony) | E42: SML | F42: Venzal et al. 2008. doi: 10.1603/0022-2585(2008)45[832:toatsg]2.0.co;2
A43: A | B43: Alectorobius saraivai | C43: 28 | D43: Ilhabela, SP, Brazil | E43: SML* | F43: Muñoz-Leal et al. 2017. doi: 10.1016/j.ttbdis.2017.04.015
A44: A | B44: Alectorobius saraivai | C44: 29 | D44: Ilhabela, SP, Brazil | E44: SML* | F44: Muñoz-Leal et al. 2017. doi: 10.1016/j.ttbdis.2017.04.015
A45: A | B45: Alectorobius spheniscus | C45: 18 | D45: Isla Mocha, Biobío, Chile | E45: SML* | F45: Muñoz-Leal et al. 2019. doi: 10.1016/j.actatropica.2019.02.002
A46: A | B46: Alectorobius spheniscus | C46: 24 | D46: Isla Mocha, Biobío, Chile | E46: SML* | F46: Muñoz-Leal et al. 2019. doi: 10.1016/j.actatropica.2019.02.002
A47: A | B47: Alectorobius spheniscus | C47: 36 | D47: Parque Nacional Pan de Azúcar, Atacama, Chile | E47: SML* | F47: Muñoz-Leal et al. 2019. doi: 10.1016/j.actatropica.2019.02.002
A48: A | B48: Alectorobius spheniscus | C48: 38 | D48: Isla Mocha, Biobío, Chile | E48: SML | F48: Muñoz-Leal et al. 2019. doi: 10.1016/j.actatropica.2019.02.002
A49: A | B49: Alectorobius tabajara | C49: 29B | D49: Serra das Almas, Crateús, Ceará, Brazil | E49: SML | F49: Muñoz-Leal et al. 2021. doi: 10.1016/j.ttbdis.2021.101748
A50: A | B50: Alectorobius tabajara | C50: 30A | D50: Serra das Almas, Crateús, Ceará, Brazil | E50: SML | F50: Muñoz-Leal et al. 2021. doi: 10.1016/j.ttbdis.2021.101748
A51: A | B51: Alectorobius tabajara | C51: 30B | D51: Serra das Almas, Crateús, Ceará, Brazil | E51: SML | F51: Muñoz-Leal et al. 2021. doi: 10.1016/j.ttbdis.2021.101748
A52: A | B52: Argas africolumbae JM2 | C52: 33 | D52: Pretoria, South Africa | E52: BJM | F52: Mans et al. 2012. doi: 10.1371/journal.pone.0049461.
A53: A | B53: Argas cucumerinus | C53: 30 | D53: Caleta Vitor, Arica y Parinacota, Chile | E53: SML* | F53: This study
A54: A | B54: Argas cucumerinus | C54: 32 | D54: Caleta Vitor, Arica y Parinacota, Chile | E54: SML* | F54: This study
A55: A | B55: Argas cucumerinus | C55: 41 | D55: Caleta Vitor, Arica y Parinacota, Chile | E55: SML* | F55: This study
A56: A | B56: Argas cucumerinus | C56: 31 | D56: Caleta Vitor, Arica y Parinacota, Chile | E56: SML* | F56: This study
A57: A | B57: Argas cucumerinus | C57: 43 | D57: Caleta Vitor, Arica y Parinacota, Chile | E57: SML* | F57: This study
A58: A | B58: Argas cucumerinus | C58: 42 | D58: Caleta Vitor, Arica y Parinacota, Chile | E58: SML* | F58: This study
A59: A | B59: Argas eboris (Museum) | C59: 106 | D59: Skeerpoort, South Africa | E59: BJM | F59: This study
A60: A | B60: Argas persicus | C60: 34 | D60: Calama, Antofagasta, Chile | E60: SML* | F60: Muñoz-Leal et al. 2018. doi: 10.1007/s10493-018-0330-3
A61: A | B61: Argas persicus | C61: 35 | D61: Calama, Antofagasta, Chile | E61: SML* | F61: Muñoz-Leal et al. 2018. doi: 10.1007/s10493-018-0330-3
A62: A | B62: Argas persicus | C62: 33 | D62: Calama, Antofagasta, Chile | E62: SML* | F62: Muñoz-Leal et al. 2018. doi: 10.1007/s10493-018-0330-3
A63: A | B63: Argas persicus | C63: 114 | D63: Machakos, Kenya | E63: EK | F63: This study
A64: A | B64: Argas persicus Kenya | C64: 104 | D64: Machakos, Kenya | E64: EK | F64: Mans et al. 2019. doi: 10.1016/j.ttbdis.2018.09.010.
A65: A | B65: Argas ricei | C65: female | D65: Milan County, Texas, USA | E65: PDT | F65: This study
A66: A | B66: Argas ricei | C66: male | D66: Milan County, Texas, USA | E66: PDT | F66: This study
A67: A | B67: Argas sp. San Antonio | C67: nymph | D67: San Antonio, Texas, USA | E67: PDT | F67: This study
A68: A | B68: Argas walkerae | C68: 37 | D68: Nam, South Africa | E68: DGK | F68: Mans et al. 2019. doi: 10.1016/j.ttbdis.2018.09.010.
A69: A | B69: Argas walkerae 1 | C69: 83 | D69: Nam, South Africa | E69: DGK | F69: This study
A70: A | B70: Argas walkerae 2#2 | C70: 113 | D70: Nam, South Africa | E70: DGK | F70: This study
A71: A | B71: Chiropterargas boueti (Museum) | C71: 110 | D71: Sakkara, Egypt | E71: BJM | F71: This study
A72: A | B72: Chiropterargas boueti AG1 | C72: 25 | D72: Prieska, South Africa | E72: DGK | F72: Mans et al. 2019. doi: 10.1016/j.ttbdis.2018.09.010.
A73: A | B73: Chiropterargas boueti AG2 | C73: 26 | D73: Prieska, South Africa | E73: DGK | F73: Mans et al. 2019. doi: 10.1016/j.ttbdis.2018.09.010.
A74: A | B74: Chiropterargas boueti BP1 | C74: 20 | D74: Bergpan, South Africa | E74: DGK | F74: Mans et al. 2019. doi: 10.1016/j.ttbdis.2018.09.010.
A75: A | B75: Chiropterargas boueti BP2 | C75: 28 | D75: Bergpan, South Africa | E75: DGK | F75: Mans et al. 2019. doi: 10.1016/j.ttbdis.2018.09.010.
A76: A | B76: Ixodes angustus | C76: WA16-173 | D76: Thurston County, Washington, USA | E76: RJE | F76: This study
A77: A | B77: Ixodes angustus | C77: WA16-187 | D77: Thurston County, Washington, USA | E77: RJE | F77: This study
A78: A | B78: Ixodes pacificus | C78: female | D78: California, USA (CDC, Atlanta, GA, USA, Colony) | E78: BEI | F78: Repository
A79: A | B79: Ixodes pacificus | C79: male | D79: California, USA (CDC, Atlanta, GA, USA, Colony) | E79: BEI | F79: Repository
A80: A | B80: Ixodes ricinus | C80: 2 | D80: Paris, France (CDC, Atlanta, GA, USA, Colony) | E80: BEI | F80: Repository
A81: A | B81: Ixodes ricinus | C81: 3 | D81: Paris, France (CDC, Atlanta, GA, USA, Colony) | E81: BEI | F81: Repository
A82: A | B82: Ixodes ricinus | C82: 1 | D82: Paris, France (CDC, Atlanta, GA, USA, Colony) | E82: BEI | F82: Repository
A83: A | B83: Ixodes rubicundus | C83: 7 | D83: Fauresmith, South Africa | E83: RP | F83: Mans et al. 2019. doi: 10.1016/j.ttbdis.2018.09.010.
A84: A | B84: Ixodes scapularis | C84: 2 | D84: Rhode Island, USA (CDC, Atlanta, GA, USA, Colony) | E84: BEI | F84: Repository
A85: A | B85: Ixodes scapularis | C85: 3 | D85: Rhode Island, USA (CDC, Atlanta, GA, USA, Colony) | E85: BEI | F85: Repository
A86: A | B86: Ixodes simplex Bakwena1 | C86: 53 | D86: Bakwena, South Africa | E86: BJM | F86: Mans et al. 2019. doi: 10.1016/j.ttbdis.2018.09.010.
A87: A | B87: Ixodes simplex Bakwena2 | C87: 54 | D87: Bakwena, South Africa | E87: BJM | F87: Mans et al. 2019. doi: 10.1016/j.ttbdis.2018.09.010.
A88: A | B88: Navis striatus P1 | C88: 36 | D88: Prieska, South Africa | E88: DGK | F88: Mans et al. 2019. doi: 10.1016/j.ttbdis.2018.09.010.
A89: A | B89: Navis striatus U2 | C89: 12 | D89: Upington, South Africa | E89: DGK | F89: Mans et al. 2019. doi: 10.1016/j.ttbdis.2018.09.010.
A90: A | B90: Nuttalliella namaqua HVP | C90: 19 | D90: Heuningvleipan, South Africa | E90: BJM | F90: Mans et al. 2019. doi: 10.1016/j.ttbdis.2018.09.010.
A91: A | B91: Nuttalliella namaqua Krymekaar | C91: 34 | D91: Springbok, South Africa | E91: DGK | F91: Mans et al. 2012. doi: 10.1371/journal.pone.0049461.
A92: A | B92: Ogadenus brumpti L1 | C92: 17 | D92: Lekkersing, South Africa | E92: RP | F92: Mans et al. 2019. doi: 10.1016/j.ttbdis.2018.09.010.
A93: A | B93: Ogadenus brumpti L2 | C93: 18 | D93: Lekkersing, South Africa | E93: RP | F93: Mans et al. 2019. doi: 10.1016/j.ttbdis.2018.09.010.
A94: A | B94: Ornithodoros compactus K2 | C94: 9 | D94: Prieska, South Africa | E94: DGK | F94: Mans et al. 2019. doi: 10.1016/j.ttbdis.2018.09.010.
A95: A | B95: Ornithodoros costalis | C95: 40 | D95: Outhna, Tunisia | E95: AB | F95: Trape et al. 2013. doi: 10.1371/journal.pone.0078473
A96: A | B96: Ornithodoros erraticus | C96: 1 | D96: Alentejo, Portugal (CIRAD, France, Colony) | E96: IV2 | F96: Repository
A97: A | B97: Ornithodoros erraticus | C97: 2 | D97: Alentejo, Portugal (CIRAD, France, Colony) | E97: IV2 | F97: Repository
A98: A | B98: Ornithodoros furcosus | C98: 1 | D98: Utco, Cajamarca, Peru | E98: SML | F98: This study
A99: A | B99: Ornithodoros furcosus | C99: 2 | D99: Utco, Cajamarca, Peru | E99: SML | F99: This study
A100: A | B100: Ornithodoros hermsi | C100: 3 | D100: Siskiyou County, California, USA (SIS Strain, Laboratory Colony) | E100: JEL | F100: Lopez et al. 2011. doi: 10.1603/ME10283
A101: A | B101: Ornithodoros kalaharensis UP | C101: 94 | D101: Upington, South Africa | E101: DGK | F101: Mans et al. 2019. doi: 10.1016/j.ttbdis.2018.09.010.
A102: A | B102: Ornithodoros kalahariensis | C102: 35 | D102: Tosca, South Africa | E102: DGK | F102: Mans et al. 2019. doi: 10.1016/j.ttbdis.2018.09.010.
A103: A | B103: Ornithodoros Morocco | C103: 89 | D103: Missour, Morroco | E103: MS | F103: This study
A104: A | B104: Ornithodoros moubata | C104: female1 | D104: Neuchâtel University (CIRAD, France, Colony) | E104: IV2 | F104: Repository
A105: A | B105: Ornithodoros moubata (Museum) | C105: 108 | D105: Onderstepoort, South Africa | E105: BJM | F105: This study
A106: A | B106: Ornithodoros moubata PMO1 | C106: 70 | D106: PaMAenOns, South Africa | E106: BJM | F106: Mans et al. 2019. doi: 10.1016/j.ttbdis.2018.09.010.
A107: A | B107: Ornithodoros moubata PMO2 | C107: 71 | D107: PaMAenOns, South Africa | E107: BJM | F107: This study
A108: A | B108: Ornithodoros noorsveldensis | C108: 111 | D108: Steytlerville, South Africa | E108: BJM | F108: Mans et al. 2019. doi: 10.1016/j.ttbdis.2018.09.010.
A109: A | B109: Ornithodoros pavimentosus | C109: 41 | D109: Nam, South Africa | E109: BJM | F109: Mans et al. 2019. doi: 10.1016/j.ttbdis.2018.09.010.
A110: A | B110: Ornithodoros phacochoerus KNP | C110: 116 | D110: Kruger Park, South Africa | E110: BJM | F110: Mans et al. 2019. doi: 10.1016/j.ttbdis.2018.09.010.
A111: A | B111: Ornithodoros phacochoerus Pafuri2 | C111: 79 | D111: Kruger Park, South Africa | E111: BJM | F111: This study
A112: A | B112: Ornithodoros phacochoerus Pafuri3 | C112: 78 | D112: Kruger Park, South Africa | E112: BJM | F112: This study
A113: A | B113: Ornithodoros porcinus Kenya | C113: 39 | D113: Ziwani, Kenya | E113: EK | F113: Mans et al. 2019. doi: 10.1016/j.ttbdis.2018.09.010.
A114: A | B114: Ornithodoros rudis | C114: 11 | D114: Araguapaz, GO, Brazil | E114: SML* | F114: Muñoz-Leal et al. 2021. doi: 10.3201/eid2701.200349
A115: A | B115: Ornithodoros rudis | C115: 2 | D115: Riachão, Maranhão, Brazil | E115: SML | F115: Muñoz-Leal et al. 2018. doi: 10.1016/j.ttbdis.2018.03.008
A116: A | B116: Ornithodoros savignyi (Museum) | C116: 109 | D116: South Africa | E116: BJM | F116: This study
A117: A | B117: Ornithodoros savignyi Sudan 5 | C117: 127 | D117: El Obeid, Sudan | E117: AL | F117: Mans et al. 2019. doi: 10.1016/j.ttbdis.2018.09.010.
A118: A | B118: Ornithodoros savignyi Sudan1 | C118: 64 | D118: El Obeid, Sudan | E118: AL | F118: Mans et al. 2019. doi: 10.1016/j.ttbdis.2018.09.010.
A119: A | B119: Ornithodoros sp. | C119: 1 | D119: Parque Nacional Bosque de Fray Jorge, Chile | E119: SML | F119: This study
A120: A | B120: Ornithodoros tartakovskyi | C120: 2 | D120: Strain FR3 (FR3, NIH, Colony) | E120: BEI | F120: Repository
A121: A | B121: Ornithodoros tartakovskyi | C121: 1 | D121: Strain FR3 (FR3, NIH, Colony) | E121: BEI | F121: Repository
A122: A | B122: Ornithodoros turicata KAN | C122: 5 | D122: Kansas Colony, Rocky Mountain Labs, USA | E122: TGS | F122: Boyle et al. 2014. doi: 10.1371/journal.pntd.0002767
A123: A | B123: Ornithodoros turicata NM | C123: 3 | D123: Roosevelt County, New Mexico, USA (Laboratory Colony) | E123: TS/IM | F123: This study
A124: A | B124: Ornithodoros turicata Ocala | C124: 2 | D124: Ocala, Florida, USA (Laboratory Colony) | E124: JEL | F124: Donaldson et al. 2016. doi: 10.1371/journal.pntd.0004383
A125: A | B125: Ornithodoros turicata Travis | C125: 5 | D125: Travis County, Texas, USA (Laboratory Colony) | E125: PDT | F125: Kim et al. 2017. doi10.1111/mve.12223
A126: A | B126: Ornithodoros verrucosus CHICH-C | C126: 1 | D126: Pokrovka, Mykolaiv, Ukraine | E126: SF | F126: This study
A127: A | B127: Ornithodoros verrucosus CHICH-C | C127: 2 | D127: Pokrovka, Mykolaiv, Ukraine | E127: SF | F127: This study
A128: A | B128: Ornithodoros waterbergensis ASH3 | C128: 121 | D128: Asher, South Africa | E128: BJM | F128: This study
A129: A | B129: Ornithodoros waterbergensis PP2 | C129: 119 | D129: Bergpan, South Africa | E129: DGK | F129: This study
A130: A | B130: Ornithodoros waterbergensis SD2 | C130: 22 | D130: Bergpan, South Africa | E130: DGK | F130: Mans et al. 2019. doi: 10.1016/j.ttbdis.2018.09.010.
A131: A | B131: Ornithodoros zumpti CA1 | C131: 76 | D131: Cathcart, South Africa | E131: DGK | F131: This study
A132: A | B132: Ornithodoros zumpti CA2 | C132: 75 | D132: Cathcart, South Africa | E132: DGK | F132: This study
A133: A | B133: Ornithodoros zumpti CAN | C133: 24 | D133: Cathcart, South Africa | E133: DGK | F133: Mans et al. 2019. doi: 10.1016/j.ttbdis.2018.09.010.
A134: A | B134: Ornithodoros zumpti GS1 | C134: 72 | D134: Grahmstown, South Africa | E134: DGK | F134: This study
A135: A | B135: Ornithodoros zumpti GS2 | C135: 73 | D135: Grahmstown, South Africa | E135: DGK | F135: This study
A136: A | B136: Ornithodoros zumpti GSN | C136: 23 | D136: Grahmstown, South Africa | E136: DGK | F136: Mans et al. 2019. doi: 10.1016/j.ttbdis.2018.09.010.
A137: A | B137: Otobius lagophilus | C137: 4 | D137: El Paso, Texas, USA | E137: PDT | F137: This study
A138: A | B138: Otobius lagophilus | C138: 8 | D138: El Paso, Texas, USA | E138: PDT | F138: This study
A139: A | B139: Otobius lagophilus | C139: N1 | D139: El Paso, Texas, USA | E139: PDT | F139: This study
A140: A | B140: Otobius lagophilus | C140: N2 | D140: El Paso, Texas, USA | E140: PDT | F140: This study
A141: A | B141: Otobius megnini | C141: 31 | D141: Port Elizabeth, South Africa | E141: BJM | F141: Mans et al. 2019. doi: 10.1016/j.ttbdis.2018.09.010.
A142: A | B142: Proknekalia peringueyi 1 | C142: 13 | D142: Bloemhof, South Africa | E142: DGK | F142: Mans et al. 2019. doi: 10.1016/j.ttbdis.2018.09.010.
A143: A | B143: Proknekalia peringueyi 2 | C143: 14 | D143: Bloemhof, South Africa | E143: DGK | F143: Mans et al. 2019. doi: 10.1016/j.ttbdis.2018.09.010.
A144: A | B144: Reticulinasus faini 2 | C144: 82 | D144: Kruger Park, South Africa | E144: BJM | F144: Mans et al. 2019. doi: 10.1016/j.ttbdis.2018.09.010.
A145: A | B145: Secretargas transgariepinus | C145: 130 | D145: Kougas, South Africa | E145: RP | F145: Mans et al. 2019. doi: 10.1016/j.ttbdis.2018.09.010.
A146: A | B146: Secretargas transgariepinus (Museum) | C146: 105 | D146: Abu Rawash, Egypt | E146: BJM | F146: This study
A147: A | B147: Secretargas transgariepinus 1 | C147: 15 | D147: Prieska, South Africa | E147: RP | F147: Mans et al. 2019. doi: 10.1016/j.ttbdis.2018.09.010.
A148: A | B148: Secretargas transgariepinus 2 | C148: 16 | D148: Prieska, South Africa | E148: RP | F148: Mans et al. 2019. doi: 10.1016/j.ttbdis.2018.09.010.
A149: B | B149: Amblyomma americanum | C149: 2 | D149: Mixed colony of collections from Brazos and Edwards Counties, TX, USA | E149: PDT | F149: Linske et al. 2020. doi:10.3390/insects11010013
A150: B | B150: Amblyomma americanum | C150: 1 | D150: Mixed colony of collections from Brazos and Edwards Counties, TX, USA | E150: PDT | F150: Linske et al. 2020. doi:10.3390/insects11010014
A151: B | B151: Amblyomma americanum | C151: 3 | D151: Mixed colony of collections from Brazos and Edwards Counties, TX, USA | E151: PDT | F151: Linske et al. 2020. doi:10.3390/insects11010015
A152: B | B152: Amblyomma hebraeum 1 | C152: 50 | D152: Soutpan, South Africa | E152: DGK | F152: Mans et al. 2019. doi: 10.1016/j.ttbdis.2018.09.010.
A153: B | B153: Amblyomma maculatum | C153: 3 | D153: Mixed colony of collections from San Patricio, Goliad, Colorado, and Kennedy Counties, TX, USA | E153: PDT | F153: Ketchum et al. 2009. doi: 10.1603/033.046.0311
A154: B | B154: Amblyomma maculatum | C154: 1 | D154: Mixed colony of collections from San Patricio, Goliad, Colorado, and Kennedy Counties, TX, USA | E154: PDT | F154: Ketchum et al. 2009. doi: 10.1603/033.046.0312
A155: B | B155: Amblyomma maculatum | C155: 2 | D155: Mixed colony of collections from San Patricio, Goliad, Colorado, and Kennedy Counties, TX, USA | E155: PDT | F155: Ketchum et al. 2009. doi: 10.1603/033.046.0313
A156: B | B156: Amblyomma mixtum | C156: 1 | D156: San Patricio County, TX, USA (Colony) | E156: PDT | F156: Donaldson. 2019. Doctoral Dissertation. Texas A&M University
A157: B | B157: Amblyomma tholloni 1 | C157: 100 | D157: Kruger Park, South Africa | E157: BJM | F157: Mans et al. 2019. doi: 10.1016/j.ttbdis.2018.09.010.
A158: B | B158: Dermacentor albipictus | C158: 1 | D158: Kerrville, Texas, USA, Rhodes Strain (USDA-ARS Colony) | E158: KL and AAPL | F158: This study
A159: B | B159: Dermacentor albipictus | C159: 2 | D159: Kerrville, Texas, USA, Rhodes Strain (USDA-ARS Colony) | E159: KL and AAPL | F159: This study
A160: B | B160: Dermacentor variabilis | C160: 2 | D160: Georgia, USA (CDC, Atlanta, GA, USA, Colony) | E160: BEI | F160: Repository
A161: B | B161: Haemaphysalis longicornis | C161: 3 | D161: Yonkers, New York, USA (CDC, Atlanta, GA, USA, Colony) | E161: BEI | F161: Repository
A162: B | B162: Hyalomma marginatum | C162: 1 | D162: Pompignan, Gard, France (CIRAD, France, Colony) | E162: IV2 | F162: Repository
A163: B | B163: Hyalomma truncatum 2 | C163: 49 | D163: Vereeniging, South Africa | E163: DGK | F163: Mans et al. 2019. doi: 10.1016/j.ttbdis.2018.09.010.
A164: B | B164: Rhipicephalus annulatus | C164: 1 | D164: Maverick County, Texas, USA, Vega Strain (USDA-ARS Colony) | E164: KL and AAPL | F164: Klafke et al. 2010. doi: 10.1016/j.ttbdis.2019.101368
A165: B | B165: Rhipicephalus appendiculatus 2 | C165: 32 | D165: Colony, South Africa | E165: BJM | F165: Mans et al. 2019. doi: 10.1016/j.ttbdis.2018.09.010.
A166: B | B166: Rhipicephalus evertsi 2 | C166: 46 | D166: Uitspanning, South Africa | E166: BJM | F166: Mans et al. 2019. doi: 10.1016/j.ttbdis.2018.09.010.
A167: B | B167: Rhipicephalus evertsi Kwanare | C167: 125 | D167: Kwanare, South Africa | E167: RP | F167: This study
A168: B | B168: Rhipicephalus maculatus 1 | C168: 44 | D168: Phinda, South Africa | E168: DGK | F168: Mans et al. 2019. doi: 10.1016/j.ttbdis.2018.09.010.
A169: B | B169: Rhipicephalus microplus | C169: 3 | D169: Webb County, Texas, USA, Deutsch Strain (USDA-ARS Colony) | E169: KL and AAPL | F169: Bellgard et al. 2012. doi: 10.1016/j.ijpara.2011.11.006
A170: B | B170: Rhipicephalus sanguineus | C170: 1 | D170: Oklahoma, USA (CDC, Atlanta, GA, USA, Colony) | E170: BEI | F170: Repository
A171: B | B171: Rhipicephalus simus | C171: 52 | D171: Bathurst, South Africa | E171: DGK | F171: Mans et al. 2019. doi: 10.1016/j.ttbdis.2018.09.010.
A172: B | B172: Rhipicephalus zambeziensis | C172: 59 | D172: Marakele National Park, South Africa | E172: DGK | F172: Mans et al. 2019. doi: 10.1016/j.ttbdis.2018.09.010.
A173: BEI= Biodefense and Emerging Infections Research Resources Repository, USA
A174: BJM= Ben Mans, UNISA/UP, South Africa
A175: IV2= InfraVec2, European Biorepository
A176: JEL= Job Lopez, BCM, USA
A177: PDT= Pete Teel, TAMU, USA
A178: RJE= Rebecca Eisen, CDC, CO, USA
A179: SF= Serhii Filatov, BCM, USA
A180: SML= Sebastián Muñoz Leal, UDEC, Chile
A181: KL= Kimberly Lohmeyer, USDA-ARS, TX, USA
A182: AAPL= Adalberto Pérez de León, USDA-ARS, CA, USA
A183: EK= Esther Kanduma, UoN, Kenya
A184: AL=Abdalla Latif, UKZN, South Africa
A185: MS=M'hammed Sarih, Institut Pasteur du Maroc, Morocco
A186: AB=Ali Bouattour, Institut Pasteur de Tunis, Tunisia
A187: DGK= Daniel de Klerk, ARC-OVR, South Africa
A188: RP= Ronel Pienaar, ARC-OVR, South Africa
A189: TGS=Tom Schwan, RML-NIH, USA
A190: TS=Thanchira Suriyamongkol, ENMU, USA
A191: IM=Ivana Mali, SIU, USA
A192: *Genomic DNA was isolated by the source lab by different methods (see Material and Methods section)

Sheet Table S9
A1: Table S8. Mitogenome Assemblies used to Develop Primers
A2: Group | B2: Organism | C2: GenBank Accession Number
A3: A | B3: Alectorobius capensis | C3: AB075953.1
A4: A | B4: Alectorobius capensis | C4: KJ133586.1
A5: A | B5: Antricola mexicanus | C5: KC769591.1
A6: A | B6: Argas africolumbae | C6: JQ665720.1
A7: A | B7: Argas brumpti | C7: KR907226.1
A8: A | B8: Argas persicus | C8: KJ133581.1
A9: A | B9: Chiropterargas boueti | C9: KR907234.1
A10: A | B10: Ixodes hexagnous | C10: NC_002010.1
A11: A | B11: Ixodes holocyclus | C11: MH043264.1
A12: A | B12: Ixodes persulcatus | C12: NC_004370.1
A13: A | B13: Ixodes ricinus | C13: KF197115.1
A14: A | B14: Ixodes tasmani | C14: MH043269.1
A15: A | B15: Ixodes uriae | C15: NC_006078.1
A16: A | B16: Navis striatus | C16: KJ133582.1
A17: A | B17: Nothoaspsis amazoniensis | C17: KX712088.1
A18: A | B18: Nuttalliella namaqua | C18: KR907248.1
A19: A | B19: Ornithodoros brasiliensis | C19: KC769593.1
A20: A | B20: Ornithodoros coriaceus | C20: MG593161.1
A21: A | B21: Ornithodoros hermsi | C21: MF818032.1
A22: A | B22: Ornithodoros moubata | C22: KJ133594.1
A23: A | B23: Ornithodoros parkeri | C23: MF818029.1
A24: A | B24: Ornithodoros porcinus | C24: KJ133595.1
A25: A | B25: Ornithodoros rostratus | C25: KC769592.1
A26: A | B26: Ornithodoros savignyi | C26: KJ133603.1
A27: A | B27: Ornithodoros sonrai | C27: MF818026.1
A28: A | B28: Ornithodoros tholozani | C28: MF818023.1
A29: A | B29: Ornithodoros turicata | C29: MF818021.1
A30: A | B30: Ornithodoros zumpti | C30: KR907257.1
A31: A | B31: Otobius megnini | C31: KC769589.1
A32: A | B32: Reticulinasus faini | C32: KJ133589.1
A33: B | B33: Amblyomma americanum | C33: NC_027609.1
A34: B | B34: Amblyomma cajennense | C34: NC_020333.1
A35: B | B35: Amblyomma triguttatum | C35: NC_005963.1
A36: B | B36: Aponomma fimbriatum | C36: NC_017759.1
A37: B | B37: Bothriocroton concolor | C37: JN863727.1
A38: B | B38: Dermacentor everestianus | C38: MG986896.1
A39: B | B39: Dermacentor marginatus | C39: MK905212.1
A40: B | B40: Dermacentor nuttalli | C40: KT764942.1
A41: B | B41: Haemaphysalis bancrofti | C41: MH043268.1
A42: B | B42: Haemaphysalis flava | C42: MG604958.1
A43: B | B43: Haemaphysalis formosensis | C43: JX573135.1
A44: B | B44: Haemaphysalis inermis | C44: NC_020335.1
A45: B | B45: Haemaphysalis longicornis | C45: MG450553.1
A46: B | B46: Hyalomma rufipes | C46: KY457528.1
A47: B | B47: Rhipicentor nuttalli | C47: NC_039828.1
A48: B | B48: Rhipicephalus australis | C48: KC503255.1
A49: B | B49: Rhipicephalus geigyi | C49: KC503263.1
A50: B | B50: Rhipicephalus microplus | C50: KP143546.1
A51: B | B51: Rhipicephalus sanguineus | C51: JX416325.1
